Workbook

Sheet Orçamento
O3: UNIDADE ESCOLAR | X3: CÓDIGO INEP
M4: =IF($M$7="MANUAL","DESPROTEJA A PLANILHA PARA FORMATAR","") ->  | O4: COORDENAÇÃO REGIONAL DE EDUAÇÃO DE RIO VERDE
A6: Nmax | O6: OBRA | S6: DATA | X6: CIDADE
A7: =MAX($C$18:$C$290) -> 4 | O7: IMPLANTAÇÃO | S7: 2020-07-23 | X7: RIO VERDE
O9: CRE | R9: ENDEREÇO | S9: REFERÊNCIA AGETOP | X9: REFERÊNCIA SINAPI
O10: RIO VERDE | R10: RUA 15-A, BAIRRO POPULAR | S10: ABR/19 | T10: DESONERADA | X10: ABR/20 | Y10: DESONERADA
O12: ÁREA EXISTENTE (M²) | R12: ÁREA A CONSTRUIR (M²) | S12: ÁREA A DEMOLIR (M²) | X12: ÁREA TOTAL CONSTRUÍDA (M²)
R13: 100.68 | X13: 100.68
L15: FILTRO | O15: PLANILHA ORÇAMENTÁRIA
A16: Nível E | B16: Save Nivel | C16: Nível C | D16: Altura | E16: n1 | F16: n2 | G16: n3 | H16: n4 | I16: n5 | J16: Czero | K16: Cnível | L16: ↓ | M16: Nível | N16: Nível Corrigido | O16: ITEM | P16: TABELA | Q16: CODIGO | R16: DESCRIÇÃO DOS SERVIÇOS | S16: UNID | T16: QUANT | U16: REPET | V16: QUANT TOTAL | W16: MAT | X16: MO | Y16: T.SERVIÇO UNIT | Z16: VALOR TOTAL | AA16: OBSERVAÇÕES¹
A17: =CHOOSE(1+LOG(1+2*(ORÇAMENTO.Nivel="Nível 1")+4*(ORÇAMENTO.Nivel="Nível 2")+8*(ORÇAMENTO.Nivel="Nível 3")+16*(ORÇAMENTO.Nivel="Nível 4")+32*(ORÇAMENTO.Nivel="Serviço"),2),0,1,2,3,4,"S") -> S | B17: =IF(OR(C17="s",C17=0),OFFSET(B17,-1,0),C17) -> Save Nivel | C17: =IF(OFFSET(C17,-1,0)="L",1,IF(OFFSET(C17,-1,0)=1,2,IF(OR(A17="s",A17=0),"S",IF(AND(OFFSET(C17,-1,0)=2,A17=4),3,IF(AND(OR(OFFSET(C17,-1,0)="s",OFFSET(C17,-1,0)=0),A17<>"s",A17>OFFSET(B17,-1,0)),OFFSET(B17,-1,0),A17))))) -> S | D17: =IF(OR(C17="S",C17=0),0,IF(ISERROR(K17),J17,SMALL(J17:K17,1))) -> 0 | E17: =IF($C17=1,OFFSET(E17,-1,0)+1,OFFSET(E17,-1,0)) -> n1 | F17: =IF($C17=1,0,IF($C17=2,OFFSET(F17,-1,0)+1,OFFSET(F17,-1,0))) -> n2 | G17: =IF(AND($C17<=2,$C17<>0),0,IF($C17=3,OFFSET(G17,-1,0)+1,OFFSET(G17,-1,0))) -> n3 | H17: =IF(AND($C17<=3,$C17<>0),0,IF($C17=4,OFFSET(H17,-1,0)+1,OFFSET(H17,-1,0))) -> n4 | I17: =IF(AND($C17<=4,$C17<>0),0,IF(AND($C17="S",$Y17>0),OFFSET(I17,-1,0)+1,OFFSET(I17,-1,0))) -> n5 | J17: =IF(OR($C17="S",$C17=0),0,MATCH(0,OFFSET($D17,1,$C17,ROW($C$290)-ROW($C17)),0)) -> 0 | K17: =IF(OR($C17="S",$C17=0),0,MATCH(OFFSET($D17,0,$C17)+1,OFFSET($D17,1,$C17,ROW($C$290)-ROW($C17)),0)) -> 0 | L17: =IF(OR(Y17>0,$C17=1),"F","") ->  | M17: Serviço | N17: =CHOOSE(1+LOG(1+2*(C17=1)+4*(C17=2)+8*(C17=3)+16*(C17=4)+32*(C17="S"),2),"","Nível 1","Nível 2","Nível 3","Nível 4","Serviço") -> Serviço | O17: - | P17: SINAPI | R17: (sem código) | S17: - | U17: REPET | V17: - | W17: 0 | X17: 0 | Y17: 0 | Z17: -
A18: 0 | C18: L | D18: =COUNTA(OFFSET(D18,1,0):D$290) -> 271 | E18: =LEFT(O19,1)-1 -> 0 | L18: F | M18: LOTE | N18: LOTE | O18: IMPLANTAÇÃO - COORDENAÇÃO REGIONAL DE EDUAÇÃO DE RIO VERDE | Z18: 0
A19: =CHOOSE(1+LOG(1+2*(ORÇAMENTO.Nivel="Nível 1")+4*(ORÇAMENTO.Nivel="Nível 2")+8*(ORÇAMENTO.Nivel="Nível 3")+16*(ORÇAMENTO.Nivel="Nível 4")+32*(ORÇAMENTO.Nivel="Serviço"),2),0,1,2,3,4,"S") -> 1 | B19: =IF(OR(C19="s",C19=0),OFFSET(B19,-1,0),C19) -> 1 | C19: =IF(OFFSET(C19,-1,0)="L",1,IF(OFFSET(C19,-1,0)=1,2,IF(OR(A19="s",A19=0),"S",IF(AND(OFFSET(C19,-1,0)=2,A19=4),3,IF(AND(OR(OFFSET(C19,-1,0)="s",OFFSET(C19,-1,0)=0),A19<>"s",A19>OFFSET(B19,-1,0)),OFFSET(B19,-1,0),A19))))) -> 1 | D19: =IF(OR(C19="S",C19=0),0,IF(ISERROR(K19),J19,SMALL(J19:K19,1))) -> 50 | E19: =IF($C19=1,OFFSET(E19,-1,0)+1,OFFSET(E19,-1,0)) -> 1 | F19: =IF($C19=1,0,IF($C19=2,OFFSET(F19,-1,0)+1,OFFSET(F19,-1,0))) -> 0 | G19: =IF(AND($C19<=2,$C19<>0),0,IF($C19=3,OFFSET(G19,-1,0)+1,OFFSET(G19,-1,0))) -> 0 | H19: =IF(AND($C19<=3,$C19<>0),0,IF($C19=4,OFFSET(H19,-1,0)+1,OFFSET(H19,-1,0))) -> 0 | I19: =IF(AND($C19<=4,$C19<>0),0,IF(AND($C19="S",$Y19>0),OFFSET(I19,-1,0)+1,OFFSET(I19,-1,0))) -> 0 | J19: =IF(OR($C19="S",$C19=0),0,MATCH(0,OFFSET($D19,1,$C19,ROW($C$290)-ROW($C19)),0)) -> 271 | K19: =IF(OR($C19="S",$C19=0),0,MATCH(OFFSET($D19,0,$C19)+1,OFFSET($D19,1,$C19,ROW($C$290)-ROW($C19)),0)) -> 50 | L19: =IF(OR(Y19>0,$C19=1),"F","") -> F | M19: Nível 1 | N19: =CHOOSE(1+LOG(1+2*(C19=1)+4*(C19=2)+8*(C19=3)+16*(C19=4)+32*(C19="S"),2),"","Nível 1","Nível 2","Nível 3","Nível 4","Serviço") -> Nível 1 | O19: 1. | P19: AGETOP | R19: NOVO BLOCO ADMINISTRATIVO | S19: UN | T19: 1 | U19: 1 | V19: 1 | Y19: 0 | Z19: 0
A20: 2 | B20: 2 | C20: 2 | D20: 2 | E20: 1 | F20: 1 | G20: 0 | H20: 0 | I20: 0 | J20: 49 | K20: 2 | M20: Nível 2 | N20: Nível 2 | O20: - | P20: AGETOP | R20: ALVENARIAS E DIVISÓRIAS | S20: - | U20: 1 | V20: - | Y20: 0 | Z20: 0
A21: S | B21: 2 | C21: S | D21: 0 | E21: 1 | F21: 1 | G21: 0 | H21: 0 | I21: 0 | J21: 0 | K21: 0 | M21: Serviço | N21: Serviço | O21: - | P21: AGETOP | Q21: 100201 | R21: ALVENARIA DE TIJOLO FURADO 1/2 VEZ - 9 x 19 x 19 - ARG. (1CALH:4ARML+100KG DE CI/M3) | S21: m2 | T21: 160.25 | U21: 1 | V21: 160.25 | Y21: 0 | Z21: 0
A22: 2 | B22: 2 | C22: 2 | D22: 4 | E22: 1 | F22: 2 | G22: 0 | H22: 0 | I22: 0 | J22: 47 | K22: 4 | M22: Nível 2 | N22: Nível 2 | O22: - | P22: SINAPI | R22: REVESTIMENTO DE PAREDE | S22: - | U22: 1 | V22: - | Y22: 0 | Z22: 0
A23: S | B23: 2 | C23: S | D23: 0 | E23: 1 | F23: 2 | G23: 0 | H23: 0 | I23: 0 | J23: 0 | K23: 0 | M23: Serviço | N23: Serviço | O23: - | P23: AGETOP | Q23: 200101 | R23: CHAPISCO COMUM | S23: m2 | T23: 320.5 | U23: 1 | V23: 320.5 | Y23: 0 | Z23: 0
A24: =CHOOSE(1+LOG(1+2*(ORÇAMENTO.Nivel="Nível 1")+4*(ORÇAMENTO.Nivel="Nível 2")+8*(ORÇAMENTO.Nivel="Nível 3")+16*(ORÇAMENTO.Nivel="Nível 4")+32*(ORÇAMENTO.Nivel="Serviço"),2),0,1,2,3,4,"S") -> S | B24: =IF(OR(C24="s",C24=0),OFFSET(B24,-1,0),C24) -> 2 | C24: =IF(OFFSET(C24,-1,0)="L",1,IF(OFFSET(C24,-1,0)=1,2,IF(OR(A24="s",A24=0),"S",IF(AND(OFFSET(C24,-1,0)=2,A24=4),3,IF(AND(OR(OFFSET(C24,-1,0)="s",OFFSET(C24,-1,0)=0),A24<>"s",A24>OFFSET(B24,-1,0)),OFFSET(B24,-1,0),A24))))) -> S | D24: =IF(OR(C24="S",C24=0),0,IF(ISERROR(K24),J24,SMALL(J24:K24,1))) -> 0 | E24: =IF($C24=1,OFFSET(E24,-1,0)+1,OFFSET(E24,-1,0)) -> 1 | F24: =IF($C24=1,0,IF($C24=2,OFFSET(F24,-1,0)+1,OFFSET(F24,-1,0))) -> 2 | G24: =IF(AND($C24<=2,$C24<>0),0,IF($C24=3,OFFSET(G24,-1,0)+1,OFFSET(G24,-1,0))) -> 0 | H24: =IF(AND($C24<=3,$C24<>0),0,IF($C24=4,OFFSET(H24,-1,0)+1,OFFSET(H24,-1,0))) -> 0 | I24: =IF(AND($C24<=4,$C24<>0),0,IF(AND($C24="S",$Y24>0),OFFSET(I24,-1,0)+1,OFFSET(I24,-1,0))) -> 0 | J24: 0 | K24: 0 | L24: =IF(OR(Y24>0,$C24=1),"F","") ->  | M24: Serviço | N24: =CHOOSE(1+LOG(1+2*(C24=1)+4*(C24=2)+8*(C24=3)+16*(C24=4)+32*(C24="S"),2),"","Nível 1","Nível 2","Nível 3","Nível 4","Serviço") -> Serviço | O24: - | P24: AGETOP | Q24: 200499 | R24: REBOCO PAULISTA A-14 (1CALH:4ARMLC+100kgCI/M3) | S24: m2 | T24: 265.98 | U24: 1 | V24: 265.98 | Y24: 0 | Z24: 0
A25: S | B25: 2 | C25: S | D25: 0 | E25: 1 | F25: 2 | G25: 0 | H25: 0 | I25: 0 | J25: 0 | K25: 0 | M25: Serviço | N25: Serviço | O25: - | P25: SINAPI | Q25: 87553 | R25: EMBOÇO, PARA RECEBIMENTO DE CERÂMICA, EM ARGAMASSA TRAÇO 1:2:8, PREPARO MECÂNICO COM BETONEIRA 400L, APLICADO MANUALMENTE EM FACES INTERNAS DE PAREDES, PARA AMBIENTE COM ÁREA MAIOR QUE 10M2, ESPESSURA DE 10MM, COM EXECUÇÃO DE TALISCAS. AF_06/2014 | S25: M2 | T25: 54.52 | U25: 1 | V25: 54.52 | Y25: 0 | Z25: 0
A26: 2 | B26: 2 | C26: 2 | D26: 5 | E26: 1 | F26: 3 | G26: 0 | H26: 0 | I26: 0 | J26: 43 | K26: 5 | M26: Nível 2 | N26: Nível 2 | O26: - | P26: SINAPI | R26: ESQUADRIAS METÁLICAS | S26: - | U26: 1 | V26: - | Y26: 0 | Z26: 0
A27: S | B27: 2 | C27: S | D27: 0 | E27: 1 | F27: 3 | G27: 0 | H27: 0 | I27: 0 | J27: 0 | K27: 0 | M27: Serviço | N27: Serviço | O27: - | P27: AGETOP | Q27: 180501 | R27: PORTA DE ABRIR EM CHAPA PF-1 C/FERRAGENS | S27: m2 | T27: 13.86 | U27: 1 | V27: 13.86 | Y27: 0 | Z27: 0
A28: S | B28: 2 | C28: S | D28: 0 | E28: 1 | F28: 3 | G28: 0 | H28: 0 | I28: 0 | J28: 0 | K28: 0 | M28: Serviço | N28: Serviço | O28: - | P28: AGETOP | Q28: 180380 | R28: ESQ. MAXIMO AR CHAPA/VIDRO J4 C/FERRAGENS | S28: m2 | T28: 0.5 | U28: 1 | V28: 0.5 | Y28: 0 | Z28: 0
A29: S | B29: 2 | C29: S | D29: 0 | E29: 1 | F29: 3 | G29: 0 | H29: 0 | I29: 0 | J29: 0 | K29: 0 | M29: Serviço | N29: Serviço | O29: - | P29: AGETOP | Q29: 180401 | R29: ESQ.DE CORRER CHAPA/VIDRO J9/J10/J12/J13 C/FERRAGENS | S29: m2 | T29: 10.08 | U29: 1 | V29: 10.08 | Y29: 0 | Z29: 0
A30: S | B30: 2 | C30: S | D30: 0 | E30: 1 | F30: 3 | G30: 0 | H30: 0 | I30: 0 | J30: 0 | K30: 0 | M30: Serviço | N30: Serviço | O30: - | P30: AGETOP | Q30: 180208 | R30: GRADE PROTECAO TIPO TIJOLINHO GP-1/GP-2 | S30: m2 | T30: 31.5 | U30: 1 | V30: 31.5 | Y30: 0 | Z30: 0
A31: 2 | B31: 2 | C31: 2 | D31: 2 | E31: 1 | F31: 4 | G31: 0 | H31: 0 | I31: 0 | J31: 38 | K31: 2 | M31: Nível 2 | N31: Nível 2 | O31: - | P31: SINAPI | R31: VIDROS | S31: - | U31: 1 | V31: - | Y31: 0 | Z31: 0
A32: S | B32: 2 | C32: S | D32: 0 | E32: 1 | F32: 4 | G32: 0 | H32: 0 | I32: 0 | J32: 0 | K32: 0 | M32: Serviço | N32: Serviço | O32: - | P32: SINAPI | Q32: 72117 | R32: VIDRO LISO COMUM TRANSPARENTE, ESPESSURA 4MM | S32: M2 | T32: 10.58 | U32: 1 | V32: 10.58 | Y32: 0 | Z32: 0 | AA32: Referência: AGETOP - 190102
A33: 2 | B33: 2 | C33: 2 | D33: 4 | E33: 1 | F33: 5 | G33: 0 | H33: 0 | I33: 0 | J33: 36 | K33: 4 | M33: Nível 2 | N33: Nível 2 | O33: - | P33: SINAPI | R33: DIVERSOS | S33: - | U33: 1 | V33: - | Y33: 0 | Z33: 0
A34: S | B34: 2 | C34: S | D34: 0 | E34: 1 | F34: 5 | G34: 0 | H34: 0 | I34: 0 | J34: 0 | K34: 0 | M34: Serviço | N34: Serviço | O34: - | P34: COMPOSIÇÃO | Q34: COMP 415_SEE | R34: PEITORIL EM GRANITO CINZA, LARGURA VARIÁVEL E PINGADEIRA | S34: M2 | T34: 1.89 | U34: 1 | V34: 1.89 | Y34: 0 | Z34: 0
A35: S | B35: 2 | C35: S | D35: 0 | E35: 1 | F35: 5 | G35: 0 | H35: 0 | I35: 0 | J35: 0 | K35: 0 | M35: Serviço | N35: Serviço | O35: - | P35: AGETOP | Q35: 60010 | R35: VERGA/CONTRAVERGA EM CONCRETO ARMADO FCK = 20 MPA | S35: m3 | T35: 0.32 | U35: 1 | V35: 0.32 | Y35: 0 | Z35: 0
A36: S | B36: 2 | C36: S | D36: 0 | E36: 1 | F36: 5 | G36: 0 | H36: 0 | I36: 0 | J36: 0 | K36: 0 | M36: Serviço | N36: Serviço | O36: - | P36: AGETOP | Q36: 271608 | R36: BANCADA DE GRANITO C/ESPELHO | S36: m2 | T36: 0.72 | U36: 1 | V36: 0.72 | Y36: 0 | Z36: 0
A37: 2 | B37: 2 | C37: 2 | D37: 13 | E37: 1 | F37: 6 | G37: 0 | H37: 0 | I37: 0 | J37: 32 | K37: 13 | M37: Nível 2 | N37: Nível 2 | O37: - | R37: PINTURA | S37: - | U37: 1 | V37: - | Y37: 0 | Z37: 0
A38: 3 | B38: 3 | C38: 3 | D38: 3 | E38: 1 | F38: 6 | G38: 1 | H38: 0 | I38: 0 | J38: 12 | K38: 3 | M38: Nível 3 | N38: Nível 3 | O38: - | P38: AGETOP | R38: LÁTEX ACRÍLICA | S38: - | U38: 1 | V38: - | Y38: 0 | Z38: 0
A39: S | B39: 3 | C39: S | D39: 0 | E39: 1 | F39: 6 | G39: 1 | H39: 0 | I39: 0 | J39: 0 | K39: 0 | M39: Serviço | N39: Serviço | O39: - | P39: AGETOP | Q39: 261300 | R39: EMASSAMENTO COM MASSA PVA DUAS DEMAOS | S39: m2 | T39: 292.41 | U39: 1 | V39: 292.41 | Y39: 0 | Z39: 0
A40: S | B40: 3 | C40: S | D40: 0 | E40: 1 | F40: 6 | G40: 1 | H40: 0 | I40: 0 | J40: 0 | K40: 0 | M40: Serviço | N40: Serviço | O40: - | P40: AGETOP | Q40: 261001 | R40: PINTURA LATEX ACRILICO 2 DEMAOS | S40: m2 | T40: 182.41 | U40: 1 | V40: 182.41 | Y40: 0 | Z40: 0
A41: 3 | B41: 3 | C41: 3 | D41: 3 | E41: 1 | F41: 6 | G41: 2 | H41: 0 | I41: 0 | J41: 9 | K41: 3 | M41: Nível 3 | N41: Nível 3 | O41: - | P41: AGETOP | R41: TETO | S41: - | U41: 1 | V41: - | Y41: 0 | Z41: 0
A42: S | B42: 3 | C42: S | D42: 0 | E42: 1 | F42: 6 | G42: 2 | H42: 0 | I42: 0 | J42: 0 | K42: 0 | M42: Serviço | N42: Serviço | O42: - | P42: AGETOP | Q42: 261300 | R42: EMASSAMENTO COM MASSA PVA DUAS DEMAOS | S42: m2 | T42: 66.57 | U42: 1 | V42: 66.57 | Y42: 0 | Z42: 0
A43: S | B43: 3 | C43: S | D43: 0 | E43: 1 | F43: 6 | G43: 2 | H43: 0 | I43: 0 | J43: 0 | K43: 0 | M43: Serviço | N43: Serviço | O43: - | P43: AGETOP | Q43: 261307 | R43: PINTURA PVA LATEX 2 DEMAOS SEM SELADOR | S43: m2 | T43: 66.57 | U43: 1 | V43: 66.57 | Y43: 0 | Z43: 0
A44: 3 | B44: 3 | C44: 3 | D44: 2 | E44: 1 | F44: 6 | G44: 3 | H44: 0 | I44: 0 | J44: 6 | K44: 2 | M44: Nível 3 | N44: Nível 3 | O44: - | P44: AGETOP | R44: EXTERNA | S44: - | U44: 1 | V44: - | Y44: 0 | Z44: 0
A45: S | B45: 3 | C45: S | D45: 0 | E45: 1 | F45: 6 | G45: 3 | H45: 0 | I45: 0 | J45: 0 | K45: 0 | M45: Serviço | N45: Serviço | O45: - | P45: AGETOP | Q45: 261001 | R45: PINTURA LATEX ACRILICO 2 DEMAOS | S45: m2 | T45: 110 | U45: 1 | V45: 110 | Y45: 0 | Z45: 0
A46: 3 | B46: 3 | C46: 3 | D46: 2 | E46: 1 | F46: 6 | G46: 4 | H46: 0 | I46: 0 | J46: 4 | K46: 2 | M46: Nível 3 | N46: Nível 3 | O46: - | P46: AGETOP | R46: ESQUADRIAS NOVAS | S46: - | U46: 1 | V46: - | Y46: 0 | Z46: 0
A47: S | B47: 3 | C47: S | D47: 0 | E47: 1 | F47: 6 | G47: 4 | H47: 0 | I47: 0 | J47: 0 | K47: 0 | M47: Serviço | N47: Serviço | O47: - | P47: AGETOP | Q47: 261602 | R47: PINT.ESMALTE/ESQUAD.FERRO C/FUNDO ANTICOR. | S47: m2 | T47: 109.99 | U47: 1 | V47: 109.99 | Y47: 0 | Z47: 0
A48: 3 | B48: 3 | C48: 3 | D48: 2 | E48: 1 | F48: 6 | G48: 5 | H48: 0 | I48: 0 | J48: 2 | M48: Nível 3 | N48: Nível 3 | O48: - | P48: AGETOP | R48: ESTRUTURA METÁLICA | S48: - | U48: 1 | V48: - | Y48: 0 | Z48: 0
A49: S | B49: 3 | C49: S | D49: 0 | E49: 1 | F49: 6 | G49: 5 | H49: 0 | I49: 0 | J49: 0 | K49: 0 | M49: Serviço | N49: Serviço | O49: - | P49: AGETOP | Q49: 261609 | R49: PINTURA ESMALTE ALQUIDICO ESTR.METALICA 2 DEMAOS | S49: m2 | T49: 125.31 | U49: 1 | V49: 125.31 | Y49: 0 | Z49: 0
A50: 2 | B50: 2 | C50: 2 | D50: 9 | E50: 1 | F50: 7 | G50: 0 | H50: 0 | I50: 0 | J50: 19 | K50: 9 | M50: Nível 2 | N50: Nível 2 | O50: - | P50: SINAPI | R50: REVESTIMENTO DE PISO | S50: - | U50: 1 | V50: - | Y50: 0 | Z50: 0
A51: 3 | B51: 3 | C51: 3 | D51: 2 | E51: 1 | F51: 7 | G51: 1 | H51: 0 | I51: 0 | J51: =IF(OR($C51="S",$C51=0),0,MATCH(0,OFFSET($D51,1,$C51,ROW($C$290)-ROW($C51)),0)) -> 8 | K51: =IF(OR($C51="S",$C51=0),0,MATCH(OFFSET($D51,0,$C51)+1,OFFSET($D51,1,$C51,ROW($C$290)-ROW($C51)),0)) -> 2 | M51: Nível 3 | N51: Nível 3 | O51: - | P51: SINAPI | R51: LASTRO | S51: - | U51: 1 | V51: - | Y51: 0 | Z51: 0
A52: S | B52: 3 | C52: S | D52: 0 | E52: 1 | F52: 7 | G52: 1 | H52: 0 | I52: 0 | J52: 0 | K52: 0 | M52: Serviço | N52: Serviço | O52: - | P52: AGETOP | Q52: 220101 | R52: LASTRO DE CONCRETO REGULARIZADO IMPERMEABILIZADO 1:3:6 ESP=5CM (BASE) | S52: m2 | T52: 90.8 | U52: 1 | V52: 90.8 | Y52: 0 | Z52: 0
A53: 3 | B53: 3 | C53: 3 | D53: 4 | E53: 1 | F53: 7 | G53: 2 | H53: 0 | I53: 0 | J53: 6 | K53: 4 | M53: Nível 3 | N53: Nível 3 | O53: - | R53: GRANITINA | S53: - | U53: 1 | V53: - | Y53: 0 | Z53: 0
A54: S | B54: 3 | C54: S | D54: 0 | E54: 1 | F54: 7 | G54: 2 | H54: 0 | I54: 0 | J54: 0 | K54: 0 | M54: Serviço | N54: Serviço | O54: - | P54: AGETOP | Q54: 221101 | R54: GRANITINA 8MM FUNDIDA COM CONTRAPISO (1CI:3ARML) E=2CM E JUNTA PLASTICA 27MM | S54: m2 | T54: 90.8 | U54: 1 | V54: 90.8 | Y54: 0 | Z54: 0
A55: S | B55: 3 | C55: S | D55: 0 | E55: 1 | F55: 7 | G55: 2 | H55: 0 | I55: 0 | J55: 0 | K55: 0 | M55: Serviço | N55: Serviço | O55: - | P55: AGETOP | Q55: 221104 | R55: RASPAGEM E APLICAÇÃO RESINA ACRÍLICA DUAS DEMÃOS | S55: m2 | T55: 96.1 | U55: 1 | V55: 96.1 | Y55: 0 | Z55: 0
A56: S | B56: 3 | C56: S | D56: 0 | E56: 1 | F56: 7 | G56: 2 | H56: 0 | I56: 0 | J56: 0 | K56: 0 | M56: Serviço | N56: Serviço | O56: - | P56: AGETOP | Q56: 221102 | R56: RODAPÉ FUNDIDO DE GRANITINA 7CM | S56: m | T56: 75.71428571 | U56: 1 | V56: 75.71428571 | Y56: 0 | Z56: 0
A57: 3 | B57: 3 | C57: 3 | D57: 2 | E57: 1 | F57: 7 | G57: 3 | H57: 0 | I57: 0 | J57: 2 | K57: 216 | M57: Nível 3 | N57: Nível 3 | O57: - | P57: SINAPI | R57: CALÇADA | S57: - | U57: 1 | V57: - | Y57: 0 | Z57: 0
A58: S | B58: 3 | C58: S | D58: 0 | E58: 1 | F58: 7 | G58: 3 | H58: 0 | I58: 0 | J58: 0 | K58: 0 | M58: Serviço | N58: Serviço | O58: - | P58: AGETOP | Q58: 220100 | R58: PASSEIO PROTECAO EM CONC.DESEMPEN.5 CM 1:2,5:3,5 ( INCLUSO ESPELHO DE 30CM/ESCAVAÇÃO/REATERRO/APILOAMENTO/ATERRO INTERNO) | S58: m2 | T58: 34.65 | U58: 1 | V58: 34.65 | Y58: 0 | Z58: 0
A59: 2 | B59: 2 | C59: 2 | D59: 2 | E59: 1 | F59: 8 | G59: 0 | H59: 0 | I59: 0 | J59: 10 | K59: 2 | M59: Nível 2 | N59: Nível 2 | O59: - | P59: SINAPI | R59: REVESTIMENTO DE PAREDE | S59: - | U59: 1 | V59: - | Y59: 0 | Z59: 0
A60: S | B60: 2 | C60: S | D60: 0 | E60: 1 | F60: 8 | G60: 0 | H60: 0 | I60: 0 | J60: 0 | K60: 0 | M60: Serviço | N60: Serviço | O60: - | P60: SINAPI | Q60: 87273 | R60: REVESTIMENTO CERÂMICO PARA PAREDES INTERNAS COM PLACAS TIPO ESMALTADA EXTRA DE DIMENSÕES 33X45 CM APLICADAS EM AMBIENTES DE ÁREA MAIOR QUE 5 M² NA ALTURA INTEIRA DAS PAREDES. AF_06/2014 | S60: M2 | T60: 54.52 | U60: 1 | V60: 54.52 | Y60: 0 | Z60: 0
A61: 2 | B61: 2 | C61: 2 | D61: 3 | E61: 1 | F61: 9 | G61: 0 | H61: 0 | I61: 0 | J61: 8 | K61: 3 | M61: Nível 2 | N61: Nível 2 | O61: - | P61: SINAPI | R61: FERRAGENS | S61: - | U61: 1 | V61: - | Y61: 0 | Z61: 0
A62: S | B62: 2 | C62: S | D62: 0 | E62: 1 | F62: 9 | G62: 0 | H62: 0 | I62: 0 | J62: 0 | K62: 0 | M62: Serviço | N62: Serviço | O62: - | P62: AGETOP | Q62: 230174 | R62: BARRA DE APOIO EM AÇO INOX - 40 CM | S62: un | T62: 4 | U62: 1 | V62: 4 | Y62: 0 | Z62: 0
A63: S | B63: 2 | C63: S | D63: 0 | E63: 1 | F63: 9 | G63: 0 | H63: 0 | I63: 0 | J63: 0 | K63: 0 | M63: Serviço | N63: Serviço | O63: - | P63: AGETOP | Q63: 230176 | R63: BARRA DE APOIO EM AÇO INOX - 80 CM | S63: un | T63: 3 | U63: 1 | V63: 3 | Y63: 0 | Z63: 0
A64: 2 | B64: 2 | C64: 2 | D64: 5 | E64: 1 | F64: 10 | G64: 0 | H64: 0 | I64: 0 | J64: 5 | M64: Nível 2 | N64: Nível 2 | O64: - | P64: SINAPI | R64: COBERTURAS | S64: - | U64: 1 | V64: - | Y64: 0 | Z64: 0
A65: S | B65: 2 | C65: S | D65: 0 | E65: 1 | F65: 10 | G65: 0 | H65: 0 | I65: 0 | J65: 0 | K65: 0 | M65: Serviço | N65: Serviço | O65: - | P65: AGETOP | Q65: 160100 | R65: COBERTURA COM TELHA AMERICANA RESINADA COR VERMELHA | S65: m2 | T65: 125.31 | U65: 1 | V65: 125.31 | Y65: 0 | Z65: 0
A66: S | B66: 2 | C66: S | D66: 0 | E66: 1 | F66: 10 | G66: 0 | H66: 0 | I66: 0 | J66: 0 | K66: 0 | M66: Serviço | N66: Serviço | O66: - | P66: AGETOP | Q66: 160403 | R66: EMBOCAMENTO LATERAL (OITOES) | S66: m | T66: 19.8 | U66: 1 | V66: 19.8 | Y66: 0 | Z66: 0
A67: S | B67: 2 | C67: S | D67: 0 | E67: 1 | F67: 10 | G67: 0 | H67: 0 | I67: 0 | J67: 0 | K67: 0 | M67: Serviço | N67: Serviço | O67: - | P67: AGETOP | Q67: 160404 | R67: EMBOCAMENTO DE BEIRAL | S67: M | T67: 26.7 | U67: 1 | V67: 26.7 | Y67: 0 | Z67: 0
A68: S | B68: 2 | C68: S | D68: 0 | E68: 1 | F68: 10 | G68: 0 | H68: 0 | I68: 0 | J68: 0 | K68: 0 | M68: Serviço | N68: Serviço | O68: - | P68: AGETOP | Q68: 160101 | R68: CUMEEIRA PARA TELHA AMERICANA RESINADA COR VERMELHA | S68: m | T68: 13.35 | U68: 1 | V68: 13.35 | Y68: 0 | Z68: 0
A69: 1 | B69: 1 | C69: 1 | D69: 9 | E69: 2 | F69: 0 | G69: 0 | H69: 0 | I69: 0 | J69: 221 | K69: 9 | L69: F | M69: Nível 1 | N69: Nível 1 | O69: 2. | P69: SINAPI | R69: IMPLANTAÇÃO BLOCO ADMINISTRATIVO | S69: UN | T69: 1 | U69: 1 | V69: 1 | Y69: 0 | Z69: 0
A70: =CHOOSE(1+LOG(1+2*(ORÇAMENTO.Nivel="Nível 1")+4*(ORÇAMENTO.Nivel="Nível 2")+8*(ORÇAMENTO.Nivel="Nível 3")+16*(ORÇAMENTO.Nivel="Nível 4")+32*(ORÇAMENTO.Nivel="Serviço"),2),0,1,2,3,4,"S") -> 2 | B70: =IF(OR(C70="s",C70=0),OFFSET(B70,-1,0),C70) -> 2 | C70: =IF(OFFSET(C70,-1,0)="L",1,IF(OFFSET(C70,-1,0)=1,2,IF(OR(A70="s",A70=0),"S",IF(AND(OFFSET(C70,-1,0)=2,A70=4),3,IF(AND(OR(OFFSET(C70,-1,0)="s",OFFSET(C70,-1,0)=0),A70<>"s",A70>OFFSET(B70,-1,0)),OFFSET(B70,-1,0),A70))))) -> 2 | D70: =IF(OR(C70="S",C70=0),0,IF(ISERROR(K70),J70,SMALL(J70:K70,1))) -> 8 | E70: =IF($C70=1,OFFSET(E70,-1,0)+1,OFFSET(E70,-1,0)) -> 2 | F70: =IF($C70=1,0,IF($C70=2,OFFSET(F70,-1,0)+1,OFFSET(F70,-1,0))) -> 1 | G70: =IF(AND($C70<=2,$C70<>0),0,IF($C70=3,OFFSET(G70,-1,0)+1,OFFSET(G70,-1,0))) -> 0 | H70: =IF(AND($C70<=3,$C70<>0),0,IF($C70=4,OFFSET(H70,-1,0)+1,OFFSET(H70,-1,0))) -> 0 | I70: =IF(AND($C70<=4,$C70<>0),0,IF(AND($C70="S",$Y70>0),OFFSET(I70,-1,0)+1,OFFSET(I70,-1,0))) -> 0 | J70: 8 | K70: 11 | L70: =IF(OR(Y70>0,$C70=1),"F","") ->  | M70: Nível 2 | N70: =CHOOSE(1+LOG(1+2*(C70=1)+4*(C70=2)+8*(C70=3)+16*(C70=4)+32*(C70="S"),2),"","Nível 1","Nível 2","Nível 3","Nível 4","Serviço") -> Nível 2 | O70: - | P70: SINAPI | R70: SERVIÇO EM TERRA | S70: - | U70: 1 | V70: - | Y70: 0 | Z70: 0
A71: 3 | B71: 3 | C71: 3 | D71: 7 | E71: 2 | F71: 1 | G71: 1 | H71: 0 | I71: 0 | J71: 7 | K71: 31 | M71: Nível 3 | N71: Nível 3 | O71: - | R71: AQUISIÇÃO DE TERRA (SOMENTE ATERRO) | S71: - | U71: 1 | V71: - | Y71: 0 | Z71: 0
A72: S | B72: 3 | C72: S | D72: 0 | E72: 2 | F72: 1 | G72: 1 | H72: 0 | I72: 0 | J72: 0 | K72: 0 | M72: Serviço | N72: Serviço | O72: - | P72: AGETOP | Q72: 41004 | R72: ESCAVACAO MECANICA | S72: m3 | T72: 48.81 | U72: 1 | V72: 48.81 | Y72: 0 | Z72: 0
A73: S | B73: 3 | C73: S | D73: 0 | E73: 2 | F73: 1 | G73: 1 | H73: 0 | I73: 0 | J73: 0 | K73: 0 | M73: Serviço | N73: Serviço | O73: - | P73: AGETOP | Q73: 41005 | R73: CARGA MECANIZADA | S73: m3 | T73: 48.81 | U73: 1 | V73: 48.81 | Y73: 0 | Z73: 0
A74: S | B74: 3 | C74: S | D74: 0 | E74: 2 | F74: 1 | G74: 1 | H74: 0 | I74: 0 | J74: 0 | K74: 0 | M74: Serviço | N74: Serviço | O74: - | P74: AGETOP | Q74: 41012 | R74: INDENIZAÇÃO DE JAZIDA | S74: m3 | T74: 48.81 | U74: 1 | V74: 48.81 | Y74: 0 | Z74: 0
A75: S | B75: 3 | C75: S | D75: 0 | E75: 2 | F75: 1 | G75: 1 | H75: 0 | I75: 0 | J75: 0 | K75: 0 | M75: Serviço | N75: Serviço | O75: - | P75: AGETOP | Q75: 41006 | R75: TRANSPORTE DE MATERIAL ESCAVADO M3.KM | S75: m3km | T75: 488.12 | U75: 1 | V75: 488.12 | Y75: 0 | Z75: 0
A76: S | B76: 3 | C76: S | D76: 0 | E76: 2 | F76: 1 | G76: 1 | H76: 0 | I76: 0 | J76: 0 | K76: 0 | M76: Serviço | N76: Serviço | O76: - | P76: AGETOP | Q76: 41140 | R76: REGULARIZAÇÃO DO TERRENO SEM APILOAMENTO COM TRANSPORTE MANUAL DA TERRA ESCAVADA | S76: m2 | T76: 174.36 | U76: 1 | V76: 174.36 | Y76: 0 | Z76: 0
A77: S | B77: 3 | C77: S | D77: 0 | E77: 2 | F77: 1 | G77: 1 | H77: 0 | I77: 0 | J77: 0 | K77: 0 | M77: Serviço | N77: Serviço | O77: - | P77: AGETOP | Q77: 41002 | R77: APILOAMENTO | S77: m2 | T77: 174.36 | U77: 1 | V77: 174.36 | Y77: 0 | Z77: 0
A78: 1 | B78: 1 | C78: 1 | D78: 20 | E78: 3 | F78: 0 | G78: 0 | H78: 0 | I78: 0 | J78: 212 | K78: 20 | L78: F | M78: Nível 1 | N78: Nível 1 | O78: 3. | P78: SINAPI | R78: RAMPA DE ACESSO | S78: UN | T78: 1 | U78: 1 | V78: 1 | Y78: 0 | Z78: 0
A79: 2 | B79: 2 | C79: 2 | D79: 2 | E79: 3 | F79: 1 | G79: 0 | H79: 0 | I79: 0 | J79: 19 | K79: 2 | M79: Nível 2 | N79: Nível 2 | O79: - | P79: SINAPI | R79: ALVENARIAS E DIVISÓRIAS | S79: - | U79: 1 | V79: - | Y79: 0 | Z79: 0
A80: S | B80: 2 | C80: S | D80: 0 | E80: 3 | F80: 1 | G80: 0 | H80: 0 | I80: 0 | J80: 0 | K80: 0 | M80: Serviço | N80: Serviço | O80: - | P80: AGETOP | Q80: 100102 | R80: ALVENARIA DE TIJOLO COMUM 1/2 VEZ - ARG. (1CI : 2CH : 8ARML) | S80: m2 | T80: 2.12 | U80: 1 | V80: 2.12 | Y80: 0 | Z80: 0
A81: 2 | B81: 2 | C81: 2 | D81: 3 | E81: 3 | F81: 2 | G81: 0 | H81: 0 | I81: 0 | J81: 17 | K81: 3 | M81: Nível 2 | N81: Nível 2 | O81: - | P81: SINAPI | R81: REVESTIMENTO DE PAREDE | S81: - | U81: 1 | V81: - | Y81: 0 | Z81: 0
A82: S | B82: 2 | C82: S | D82: 0 | E82: 3 | F82: 2 | G82: 0 | H82: 0 | I82: 0 | J82: 0 | K82: 0 | M82: Serviço | N82: Serviço | O82: - | P82: AGETOP | Q82: 200101 | R82: CHAPISCO COMUM | S82: m2 | T82: 2.12 | U82: 1 | V82: 2.12 | Y82: 0 | Z82: 0
A83: S | B83: 2 | C83: S | D83: 0 | E83: 3 | F83: 2 | G83: 0 | H83: 0 | I83: 0 | J83: =IF(OR($C83="S",$C83=0),0,MATCH(0,OFFSET($D83,1,$C83,ROW($C$290)-ROW($C83)),0)) -> 0 | K83: =IF(OR($C83="S",$C83=0),0,MATCH(OFFSET($D83,0,$C83)+1,OFFSET($D83,1,$C83,ROW($C$290)-ROW($C83)),0)) -> 0 | M83: Serviço | N83: Serviço | O83: - | P83: AGETOP | Q83: 200499 | R83: REBOCO PAULISTA A-14 (1CALH:4ARMLC+100kgCI/M3) | S83: m2 | T83: 2.12 | U83: 1 | V83: 2.12 | Y83: 0 | Z83: 0
A84: 2 | B84: 2 | C84: 2 | D84: 2 | E84: 3 | F84: 3 | G84: 0 | H84: 0 | I84: 0 | J84: 14 | K84: 2 | M84: Nível 2 | N84: Nível 2 | O84: - | P84: SINAPI | R84: PINTURA | S84: - | U84: 1 | V84: - | Y84: 0 | Z84: 0
A85: S | B85: 2 | C85: S | D85: 0 | E85: 3 | F85: 3 | G85: 0 | H85: 0 | I85: 0 | J85: 0 | K85: 0 | M85: Serviço | N85: Serviço | O85: - | P85: AGETOP | Q85: 261001 | R85: PINTURA LATEX ACRILICO 2 DEMAOS | S85: m2 | T85: 2.12 | U85: 1 | V85: 2.12 | Y85: 0 | Z85: 0
A86: 2 | B86: 2 | C86: 2 | D86: 8 | E86: 3 | F86: 4 | G86: 0 | H86: 0 | I86: 0 | J86: 12 | K86: 8 | M86: Nível 2 | N86: Nível 2 | O86: - | P86: SINAPI | R86: SERVIÇO EM TERRA | S86: - | U86: 1 | V86: - | Y86: 0 | Z86: 0
A87: 3 | B87: 3 | C87: 3 | D87: 7 | E87: 3 | F87: 4 | G87: 1 | H87: 0 | I87: 0 | J87: 7 | K87: 15 | M87: Nível 3 | N87: Nível 3 | O87: - | R87: AQUISIÇÃO DE TERRA (SOMENTE ATERRO) | S87: - | U87: 1 | V87: - | Y87: 0 | Z87: 0
A88: S | B88: 3 | C88: S | D88: 0 | E88: 3 | F88: 4 | G88: 1 | H88: 0 | I88: 0 | J88: 0 | K88: 0 | M88: Serviço | N88: Serviço | O88: - | P88: AGETOP | Q88: 41004 | R88: ESCAVACAO MECANICA | S88: m3 | T88: 3.22 | U88: 1 | V88: 3.22 | Y88: 0 | Z88: 0
A89: S | B89: 3 | C89: S | D89: 0 | E89: 3 | F89: 4 | G89: 1 | H89: 0 | I89: 0 | J89: 0 | K89: 0 | M89: Serviço | N89: Serviço | O89: - | P89: AGETOP | Q89: 41005 | R89: CARGA MECANIZADA | S89: m3 | T89: 3.22 | U89: 1 | V89: 3.22 | Y89: 0 | Z89: 0
A90: S | B90: 3 | C90: S | D90: 0 | E90: 3 | F90: 4 | G90: 1 | H90: 0 | I90: 0 | J90: 0 | K90: 0 | M90: Serviço | N90: Serviço | O90: - | P90: AGETOP | Q90: 41012 | R90: INDENIZAÇÃO DE JAZIDA | S90: m3 | T90: 3.22 | U90: 1 | V90: 3.22 | Y90: 0 | Z90: 0
A91: S | B91: 3 | C91: S | D91: 0 | E91: 3 | F91: 4 | G91: 1 | H91: 0 | I91: 0 | J91: 0 | K91: 0 | M91: Serviço | N91: Serviço | O91: - | P91: AGETOP | Q91: 41006 | R91: TRANSPORTE DE MATERIAL ESCAVADO M3.KM | S91: m3km | T91: 3.22 | U91: 1 | V91: 3.22 | Y91: 0 | Z91: 0
A92: S | B92: 3 | C92: S | D92: 0 | E92: 3 | F92: 4 | G92: 1 | H92: 0 | I92: 0 | J92: 0 | K92: 0 | M92: Serviço | N92: Serviço | O92: - | P92: AGETOP | Q92: 41140 | R92: REGULARIZAÇÃO DO TERRENO SEM APILOAMENTO COM TRANSPORTE MANUAL DA TERRA ESCAVADA | S92: m2 | T92: 14.54 | U92: 1 | V92: 14.54 | Y92: 0 | Z92: 0
A93: S | B93: 3 | C93: S | D93: 0 | E93: 3 | F93: 4 | G93: 1 | H93: 0 | I93: 0 | J93: 0 | K93: 0 | M93: Serviço | N93: Serviço | O93: - | P93: AGETOP | Q93: 41002 | R93: APILOAMENTO | S93: m2 | T93: 14.54 | U93: 1 | V93: 14.54 | Y93: 0 | Z93: 0
A94: 2 | B94: 2 | C94: 2 | D94: 2 | E94: 3 | F94: 5 | G94: 0 | H94: 0 | I94: 0 | J94: 4 | K94: 2 | M94: Nível 2 | N94: Nível 2 | O94: - | P94: SINAPI | R94: REVESTIMENTO DE PISO | S94: - | U94: 1 | V94: - | Y94: 0 | Z94: 0
A95: S | B95: 2 | C95: S | D95: 0 | E95: 3 | F95: 5 | G95: 0 | H95: 0 | I95: 0 | J95: 0 | K95: 0 | M95: Serviço | N95: Serviço | O95: - | P95: AGETOP | Q95: 220102 | R95: PISO CONCRETO DESEMPENADO ESPESSURA = 5 CM 1:2,5:3,5 | S95: m2 | T95: 14.54 | U95: 1 | V95: 14.54 | Y95: 0 | Z95: 0
A96: 2 | B96: 2 | C96: 2 | D96: 2 | E96: 3 | F96: 6 | G96: 0 | H96: 0 | I96: 0 | J96: 2 | M96: Nível 2 | N96: Nível 2 | O96: - | P96: SINAPI | R96: ESQUADRIAS METÁLICAS | S96: - | U96: 1 | V96: - | Y96: 0 | Z96: 0
A97: S | B97: 2 | C97: S | D97: 0 | E97: 3 | F97: 6 | G97: 0 | H97: 0 | I97: 0 | J97: 0 | K97: 0 | M97: Serviço | N97: Serviço | O97: - | P97: COMPOSIÇÃO | Q97: COMP 084_SEE | R97: GUARDA-CORPO COM CORRIMÃO - SEDUC | S97: M | T97: 11.92 | U97: 1 | V97: 11.92 | Y97: 0 | Z97: 0
A98: 1 | B98: 1 | C98: 1 | D98: 12 | E98: 4 | F98: 0 | G98: 0 | H98: 0 | I98: 0 | J98: 192 | K98: 12 | L98: F | M98: Nível 1 | N98: Nível 1 | O98: 4. | P98: SINAPI | R98: PORTÃO PEDESTRES | S98: UN | T98: 1 | U98: 1 | V98: 1 | Y98: 0 | Z98: 0
A99: 2 | B99: 2 | C99: 2 | D99: 6 | E99: 4 | F99: 1 | G99: 0 | H99: 0 | I99: 0 | J99: 11 | K99: 6 | M99: Nível 2 | N99: Nível 2 | O99: - | P99: SINAPI | R99: SERVIÇOS PRELIMINARES | S99: - | U99: 1 | V99: - | Y99: 0 | Z99: 0
A100: =CHOOSE(1+LOG(1+2*(ORÇAMENTO.Nivel="Nível 1")+4*(ORÇAMENTO.Nivel="Nível 2")+8*(ORÇAMENTO.Nivel="Nível 3")+16*(ORÇAMENTO.Nivel="Nível 4")+32*(ORÇAMENTO.Nivel="Serviço"),2),0,1,2,3,4,"S") -> 3 | B100: =IF(OR(C100="s",C100=0),OFFSET(B100,-1,0),C100) -> 3 | C100: =IF(OFFSET(C100,-1,0)="L",1,IF(OFFSET(C100,-1,0)=1,2,IF(OR(A100="s",A100=0),"S",IF(AND(OFFSET(C100,-1,0)=2,A100=4),3,IF(AND(OR(OFFSET(C100,-1,0)="s",OFFSET(C100,-1,0)=0),A100<>"s",A100>OFFSET(B100,-1,0)),OFFSET(B100,-1,0),A100))))) -> 3 | D100: =IF(OR(C100="S",C100=0),0,IF(ISERROR(K100),J100,SMALL(J100:K100,1))) -> 2 | E100: =IF($C100=1,OFFSET(E100,-1,0)+1,OFFSET(E100,-1,0)) -> 4 | F100: =IF($C100=1,0,IF($C100=2,OFFSET(F100,-1,0)+1,OFFSET(F100,-1,0))) -> 1 | G100: =IF(AND($C100<=2,$C100<>0),0,IF($C100=3,OFFSET(G100,-1,0)+1,OFFSET(G100,-1,0))) -> 1 | H100: =IF(AND($C100<=3,$C100<>0),0,IF($C100=4,OFFSET(H100,-1,0)+1,OFFSET(H100,-1,0))) -> 0 | I100: =IF(AND($C100<=4,$C100<>0),0,IF(AND($C100="S",$Y100>0),OFFSET(I100,-1,0)+1,OFFSET(I100,-1,0))) -> 0 | J100: 5 | K100: 2 | L100: =IF(OR(Y100>0,$C100=1),"F","") ->  | M100: Nível 3 | N100: =CHOOSE(1+LOG(1+2*(C100=1)+4*(C100=2)+8*(C100=3)+16*(C100=4)+32*(C100="S"),2),"","Nível 1","Nível 2","Nível 3","Nível 4","Serviço") -> Nível 3 | O100: - | P100: SINAPI | R100: DEMOLIÇÃO | S100: - | U100: 1 | V100: - | Y100: 0 | Z100: 0
A101: S | B101: 3 | C101: S | D101: 0 | E101: 4 | F101: 1 | G101: 1 | H101: 0 | I101: 0 | J101: 0 | K101: 0 | M101: Serviço | N101: Serviço | O101: - | P101: AGETOP | Q101: 20160 | R101: DEMOLIÇÃO DE TELA DE ALAMBRADO C/ TRANSP. ATÉ CB. E CARGA | S101: m2 | T101: 3 | U101: 1 | V101: 3 | Y101: 0 | Z101: 0
A102: =CHOOSE(1+LOG(1+2*(ORÇAMENTO.Nivel="Nível 1")+4*(ORÇAMENTO.Nivel="Nível 2")+8*(ORÇAMENTO.Nivel="Nível 3")+16*(ORÇAMENTO.Nivel="Nível 4")+32*(ORÇAMENTO.Nivel="Serviço"),2),0,1,2,3,4,"S") -> 3 | B102: =IF(OR(C102="s",C102=0),OFFSET(B102,-1,0),C102) -> 3 | C102: =IF(OFFSET(C102,-1,0)="L",1,IF(OFFSET(C102,-1,0)=1,2,IF(OR(A102="s",A102=0),"S",IF(AND(OFFSET(C102,-1,0)=2,A102=4),3,IF(AND(OR(OFFSET(C102,-1,0)="s",OFFSET(C102,-1,0)=0),A102<>"s",A102>OFFSET(B102,-1,0)),OFFSET(B102,-1,0),A102))))) -> 3 | D102: =IF(OR(C102="S",C102=0),0,IF(ISERROR(K102),J102,SMALL(J102:K102,1))) -> 3 | E102: =IF($C102=1,OFFSET(E102,-1,0)+1,OFFSET(E102,-1,0)) -> 4 | F102: =IF($C102=1,0,IF($C102=2,OFFSET(F102,-1,0)+1,OFFSET(F102,-1,0))) -> 1 | G102: =IF(AND($C102<=2,$C102<>0),0,IF($C102=3,OFFSET(G102,-1,0)+1,OFFSET(G102,-1,0))) -> 2 | H102: =IF(AND($C102<=3,$C102<>0),0,IF($C102=4,OFFSET(H102,-1,0)+1,OFFSET(H102,-1,0))) -> 0 | I102: =IF(AND($C102<=4,$C102<>0),0,IF(AND($C102="S",$Y102>0),OFFSET(I102,-1,0)+1,OFFSET(I102,-1,0))) -> 0 | J102: 3 | K102: 73 | L102: =IF(OR(Y102>0,$C102=1),"F","") ->  | M102: Nível 3 | N102: =CHOOSE(1+LOG(1+2*(C102=1)+4*(C102=2)+8*(C102=3)+16*(C102=4)+32*(C102="S"),2),"","Nível 1","Nível 2","Nível 3","Nível 4","Serviço") -> Nível 3 | O102: - | P102: SINAPI | R102: TRANSPORTE | S102: - | U102: 1 | V102: - | Y102: 0 | Z102: 0
A103: S | B103: 3 | C103: S | D103: 0 | E103: 4 | F103: 1 | G103: 2 | H103: 0 | I103: 0 | J103: 0 | K103: 0 | M103: Serviço | N103: Serviço | O103: - | P103: SINAPI | Q103: 72900 | R103: TRANSPORTE DE ENTULHO COM CAMINHAO BASCULANTE 6 M3, RODOVIA PAVIMENTADA, DMT 0,5 A 1,0 KM | S103: M3 | T103: 0.15 | U103: 1 | V103: 0.15 | Y103: 0 | Z103: 0
A104: S | B104: 3 | C104: S | D104: 0 | E104: 4 | F104: 1 | G104: 2 | H104: 0 | I104: 0 | J104: 0 | K104: 0 | M104: Serviço | N104: Serviço | O104: - | P104: SINAPI | Q104: 72897 | R104: CARGA MANUAL DE ENTULHO EM CAMINHAO BASCULANTE 6 M3 | S104: M3 | T104: 0.15 | U104: 1 | V104: 0.15 | Y104: 0 | Z104: 0
A105: 2 | B105: 2 | C105: 2 | D105: 2 | E105: 4 | F105: 2 | G105: 0 | H105: 0 | I105: 0 | J105: 5 | K105: 2 | M105: Nível 2 | N105: Nível 2 | O105: - | P105: SINAPI | R105: ESQUADRIAS METÁLICAS | S105: - | U105: 1 | V105: - | Y105: 0 | Z105: 0
A106: S | B106: 2 | C106: S | D106: 0 | E106: 4 | F106: 2 | G106: 0 | H106: 0 | I106: 0 | J106: 0 | K106: 0 | M106: Serviço | N106: Serviço | O106: - | P106: AGETOP | Q106: 180281 | R106: PORTAO TELA/TUBO FoGo PT3 C/FERRAGENS | S106: m2 | T106: 3 | U106: 1 | V106: 3 | Y106: 0 | Z106: 0
A107: 2 | B107: 2 | C107: 2 | D107: 3 | E107: 4 | F107: 3 | G107: 0 | H107: 0 | I107: 0 | J107: 3 | M107: Nível 2 | N107: Nível 2 | O107: - | P107: SINAPI | R107: PINTURA | S107: - | U107: 1 | V107: - | Y107: 0 | Z107: 0
A108: 3 | B108: 3 | C108: 3 | D108: 2 | E108: 4 | F108: 3 | G108: 1 | H108: 0 | I108: 0 | J108: 2 | K108: 57 | M108: Nível 3 | N108: Nível 3 | O108: - | P108: AGETOP | R108: ESQUADRIAS NOVAS | S108: - | U108: 1 | V108: - | Y108: 0 | Z108: 0
A109: S | B109: 3 | C109: S | D109: 0 | E109: 4 | F109: 3 | G109: 1 | H109: 0 | I109: 0 | J109: 0 | K109: 0 | M109: Serviço | N109: Serviço | O109: - | P109: AGETOP | Q109: 261602 | R109: PINT.ESMALTE/ESQUAD.FERRO C/FUNDO ANTICOR. | S109: m2 | T109: 9 | U109: 1 | V109: 9 | Y109: 0 | Z109: 0
A110: 1 | B110: 1 | C110: 1 | D110: 5 | E110: 5 | F110: 0 | G110: 0 | H110: 0 | I110: 0 | J110: 180 | K110: 5 | L110: F | M110: Nível 1 | N110: Nível 1 | O110: 5. | P110: SINAPI | R110: ADMINISTRAÇÃO LOCAL | S110: UN | T110: 1 | U110: 1 | V110: 1 | Y110: 0 | Z110: 0
A111: 2 | B111: 2 | C111: 2 | D111: 4 | E111: 5 | F111: 1 | G111: 0 | H111: 0 | I111: 0 | J111: 4 | K111: 13 | M111: Nível 2 | N111: Nível 2 | O111: - | R111: ADMINISTRAÇÃO | S111: - | U111: 1 | V111: - | Y111: 0 | Z111: 0
A112: 3 | B112: 3 | C112: 3 | D112: 3 | E112: 5 | F112: 1 | G112: 1 | H112: 0 | I112: 0 | J112: 3 | K112: 53 | M112: Nível 3 | N112: Nível 3 | O112: - | R112: MENSALISTAS | S112: - | U112: 1 | V112: - | Y112: 0 | Z112: 0
A113: S | B113: 3 | C113: S | D113: 0 | E113: 5 | F113: 1 | G113: 1 | H113: 0 | I113: 0 | J113: 0 | K113: 0 | M113: Serviço | N113: Serviço | O113: - | P113: SINAPI | Q113: 90778 | R113: ENGENHEIRO CIVIL DE OBRA PLENO COM ENCARGOS COMPLEMENTARES | S113: H | T113: 20 | U113: 1 | V113: 20 | Y113: 0 | Z113: 0 | AA113: Referência: AGETOP - 250101
A114: S | B114: 3 | C114: S | D114: 0 | E114: 5 | F114: 1 | G114: 1 | H114: 0 | I114: 0 | J114: 0 | K114: 0 | M114: Serviço | N114: Serviço | O114: - | P114: SINAPI | Q114: 90776 | R114: ENCARREGADO GERAL COM ENCARGOS COMPLEMENTARES | S114: H | T114: 440 | U114: 1 | V114: 440 | Y114: 0 | Z114: 0 | AA114: Referência: AGETOP - 250103
A115: 1 | B115: 1 | C115: 1 | D115: 5 | E115: 6 | F115: 0 | G115: 0 | H115: 0 | I115: 0 | J115: =IF(OR($C115="S",$C115=0),0,MATCH(0,OFFSET($D115,1,$C115,ROW($C$290)-ROW($C115)),0)) -> 175 | K115: =IF(OR($C115="S",$C115=0),0,MATCH(OFFSET($D115,0,$C115)+1,OFFSET($D115,1,$C115,ROW($C$290)-ROW($C115)),0)) -> 5 | L115: F | M115: Nível 1 | N115: Nível 1 | O115: 6. | P115: SINAPI | R115: OBRA | S115: UN | T115: 1 | U115: 1 | V115: 1 | Y115: 0 | Z115: 0
A116: 2 | B116: 2 | C116: 2 | D116: 4 | E116: 6 | F116: 1 | G116: 0 | H116: 0 | I116: 0 | J116: 4 | K116: 8 | M116: Nível 2 | N116: Nível 2 | O116: - | P116: SINAPI | R116: DIVERSOS | S116: - | U116: 1 | V116: - | Y116: 0 | Z116: 0
A117: S | B117: 2 | C117: S | D117: 0 | E117: 6 | F117: 1 | G117: 0 | H117: 0 | I117: 0 | J117: 0 | K117: 0 | M117: Serviço | N117: Serviço | O117: - | P117: AGETOP | Q117: 270501 | R117: LIMPEZA FINAL DE OBRA - (OBRAS CIVIS) | S117: m2 | T117: 100 | U117: 1 | V117: 100 | Y117: 0 | Z117: 0
A118: S | B118: 2 | C118: S | D118: 0 | E118: 6 | F118: 1 | G118: 0 | H118: 0 | I118: 0 | J118: 0 | K118: 0 | M118: Serviço | N118: Serviço | O118: - | P118: AGETOP | Q118: 21301 | R118: PLACA DE OBRA PLOTADA EM CHAPA METÁLICA 26 , AFIXADA EM CAVALETES DE MADEIRA DE LEI (VIGOTAS 6X12CM) - PADRÃO GOINFRA | S118: m2 | T118: 7.5 | U118: 1 | V118: 7.5 | Y118: 0 | Z118: 0
A119: S | B119: 2 | C119: S | D119: 0 | E119: 6 | F119: 1 | G119: 0 | H119: 0 | I119: 0 | J119: 0 | K119: 0 | M119: Serviço | N119: Serviço | O119: - | P119: AGETOP | Q119: 270804 | R119: PLACA DE INAUGURAÇÃO AÇO ESCOVADO 60 X 120 CM | S119: un | T119: 1 | U119: 1 | V119: 1 | Y119: 0 | Z119: 0
A120: 1 | B120: 1 | C120: 1 | D120: 36 | E120: 7 | F120: 0 | G120: 0 | H120: 0 | I120: 0 | J120: 170 | K120: 36 | L120: F | M120: Nível 1 | N120: Nível 1 | O120: 7. | P120: AGETOP | R120: PROJETO ELÉTRICO | S120: UN | T120: 1 | U120: 1 | V120: 1 | Y120: 0 | Z120: 0
A121: 2 | B121: 2 | C121: 2 | D121: 3 | E121: 7 | F121: 1 | G121: 0 | H121: 0 | I121: 0 | J121: 35 | K121: 3 | M121: Nível 2 | N121: Nível 2 | O121: - | P121: AGETOP | R121: SERVIÇO EM TERRA | S121: - | U121: 1 | V121: - | Y121: 0 | Z121: 0
A122: S | B122: 2 | C122: S | D122: 0 | E122: 7 | F122: 1 | G122: 0 | H122: 0 | I122: 0 | J122: 0 | K122: 0 | M122: Serviço | N122: Serviço | O122: - | P122: SINAPI | Q122: 93358 | R122: ESCAVAÇÃO MANUAL DE VALA COM PROFUNDIDADE MENOR OU IGUAL A 1,30 M. AF_03/2016 | S122: M3 | T122: 12.6 | U122: 1 | V122: 12.6 | Y122: 0 | Z122: 0 | AA122: Referência: AGETOP - 40101
A123: S | B123: 2 | C123: S | D123: 0 | E123: 7 | F123: 1 | G123: 0 | H123: 0 | I123: 0 | J123: 0 | K123: 0 | M123: Serviço | N123: Serviço | O123: - | P123: SINAPI | Q123: 96995 | R123: REATERRO MANUAL APILOADO COM SOQUETE. AF_10/2017 | S123: M3 | T123: 12.6 | U123: 1 | V123: 12.6 | Y123: 0 | Z123: 0 | AA123: Referência: AGETOP - 40902
A124: 2 | B124: 2 | C124: 2 | D124: 32 | E124: 7 | F124: 2 | G124: 0 | H124: 0 | I124: 0 | J124: 32 | M124: Nível 2 | N124: Nível 2 | O124: - | R124: INSTALAÇÕES ELÉTRICAS | S124: - | U124: 1 | V124: - | Y124: 0 | Z124: 0
A125: S | B125: 2 | C125: S | D125: 0 | E125: 7 | F125: 2 | G125: 0 | H125: 0 | I125: 0 | J125: 0 | K125: 0 | M125: Serviço | N125: Serviço | O125: - | P125: AGETOP | Q125: 70374 | R125: BRACADEIRA METALICA TIPO "D" DIAM. 1.1/2" | S125: Un | T125: 60 | U125: 1 | V125: 60 | Y125: 0 | Z125: 0
A126: S | B126: 2 | C126: S | D126: 0 | E126: 7 | F126: 2 | G126: 0 | H126: 0 | I126: 0 | J126: 0 | K126: 0 | M126: Serviço | N126: Serviço | O126: - | P126: AGETOP | Q126: 70424 | R126: BUCHA E ARRUELA METALICA DIAM. 1.1/2" | S126: PR | T126: 60 | U126: 1 | V126: 60 | Y126: 0 | Z126: 0
A127: S | B127: 2 | C127: S | D127: 0 | E127: 7 | F127: 2 | G127: 0 | H127: 0 | I127: 0 | J127: 0 | K127: 0 | M127: Serviço | N127: Serviço | O127: - | P127: AGETOP | Q127: 71254 | R127: ELETRODUTO EM AÇO ZINCADO DIÂMETRO 1.1/2" | S127: M | T127: 90 | U127: 1 | V127: 90 | Y127: 0 | Z127: 0
A128: S | B128: 2 | C128: S | D128: 0 | E128: 7 | F128: 2 | G128: 0 | H128: 0 | I128: 0 | J128: 0 | K128: 0 | M128: Serviço | N128: Serviço | O128: - | P128: AGETOP | Q128: 71724 | R128: LUVA EM AÇO ZINCADO DIÂMETRO 1.1/2" | S128: Un | T128: 16 | U128: 1 | V128: 16 | Y128: 0 | Z128: 0
A129: S | B129: 2 | C129: S | D129: 0 | E129: 7 | F129: 2 | G129: 0 | H129: 0 | I129: 0 | J129: 0 | K129: 0 | M129: Serviço | N129: Serviço | O129: - | P129: AGETOP | Q129: 71124 | R129: CURVA 90 GRAUS AÇO ZINCADO DIÂMETRO 1.1/2" | S129: Un | T129: 8 | U129: 1 | V129: 8 | Y129: 0 | Z129: 0
A130: S | B130: 2 | C130: S | D130: 0 | E130: 7 | F130: 2 | G130: 0 | H130: 0 | I130: 0 | J130: 0 | K130: 0 | M130: Serviço | N130: Serviço | O130: - | P130: SINAPI | Q130: 97667 | R130: ELETRODUTO FLEXÍVEL CORRUGADO, PEAD, DN 50 (1 ½) - FORNECIMENTO E INSTALAÇÃO. AF_04/2016 | S130: M | T130: 35 | U130: 1 | V130: 35 | Y130: 0 | Z130: 0
A131: S | B131: 2 | C131: S | D131: 0 | E131: 7 | F131: 2 | G131: 0 | H131: 0 | I131: 0 | J131: 0 | K131: 0 | M131: Serviço | N131: Serviço | O131: - | P131: SINAPI | Q131: 91845 | R131: ELETRODUTO FLEXÍVEL CORRUGADO REFORÇADO, PVC, DN 25 MM (3/4"), PARA CIRCUITOS TERMINAIS, INSTALADO EM LAJE - FORNECIMENTO E INSTALAÇÃO. AF_12/2015 | S131: M | T131: 145 | U131: 1 | V131: 145 | Y131: 0 | Z131: 0
A132: S | B132: 2 | C132: S | D132: 0 | E132: 7 | F132: 2 | G132: 0 | H132: 0 | I132: 0 | J132: 0 | K132: 0 | M132: Serviço | N132: Serviço | O132: - | P132: SINAPI | Q132: 91847 | R132: ELETRODUTO FLEXÍVEL CORRUGADO REFORÇADO, PVC, DN 32 MM (1"), PARA CIRCUITOS TERMINAIS, INSTALADO EM LAJE - FORNECIMENTO E INSTALAÇÃO. AF_12/2015 | S132: M | T132: 12 | U132: 1 | V132: 12 | Y132: 0 | Z132: 0
A133: S | B133: 2 | C133: S | D133: 0 | E133: 7 | F133: 2 | G133: 0 | H133: 0 | I133: 0 | J133: 0 | K133: 0 | M133: Serviço | N133: Serviço | O133: - | P133: AGETOP | Q133: 70681 | R133: CAIXA METALICA OCTOGONAL FUNDO MOVEL, SIMPLES 2" | S133: Un | T133: 28 | U133: 1 | V133: 28 | Y133: 0 | Z133: 0
A134: S | B134: 2 | C134: S | D134: 0 | E134: 7 | F134: 2 | G134: 0 | H134: 0 | I134: 0 | J134: 0 | K134: 0 | M134: Serviço | N134: Serviço | O134: - | P134: SINAPI | Q134: 97592 | R134: LUMINÁRIA TIPO PLAFON, DE SOBREPOR, COM 1 LÂMPADA LED DE 12/13 W, SEM REATOR - FORNECIMENTO E INSTALAÇÃO. AF_02/2020 | S134: UN | T134: 28 | U134: 1 | V134: 28 | Y134: 0 | Z134: 0
A135: S | B135: 2 | C135: S | D135: 0 | E135: 7 | F135: 2 | G135: 0 | H135: 0 | I135: 0 | J135: 0 | K135: 0 | M135: Serviço | N135: Serviço | O135: - | P135: AGETOP | Q135: 70924 | R135: CONDULETE DE PVC - CAIXA COM 5 ENTRADAS | S135: un | T135: 5 | U135: 1 | V135: 5 | Y135: 0 | Z135: 0
A136: S | B136: 2 | C136: S | D136: 0 | E136: 7 | F136: 2 | G136: 0 | H136: 0 | I136: 0 | J136: 0 | K136: 0 | M136: Serviço | N136: Serviço | O136: - | P136: SINAPI | Q136: 92008 | R136: TOMADA BAIXA DE EMBUTIR (2 MÓDULOS), 2P+T 10 A, INCLUINDO SUPORTE E PLACA - FORNECIMENTO E INSTALAÇÃO. AF_12/2015 | S136: UN | T136: 19 | U136: 1 | V136: 19 | Y136: 0 | Z136: 0
A137: S | B137: 2 | C137: S | D137: 0 | E137: 7 | F137: 2 | G137: 0 | H137: 0 | I137: 0 | J137: 0 | K137: 0 | M137: Serviço | N137: Serviço | O137: - | P137: SINAPI | Q137: 92004 | R137: TOMADA MÉDIA DE EMBUTIR (2 MÓDULOS), 2P+T 10 A, INCLUINDO SUPORTE E PLACA - FORNECIMENTO E INSTALAÇÃO. AF_12/2015 | S137: UN | T137: 3 | U137: 1 | V137: 3 | Y137: 0 | Z137: 0 | AA137: Referência: AGETOP - 72578
A138: S | B138: 2 | C138: S | D138: 0 | E138: 7 | F138: 2 | G138: 0 | H138: 0 | I138: 0 | J138: 0 | K138: 0 | M138: Serviço | N138: Serviço | O138: - | P138: SINAPI | Q138: 91992 | R138: TOMADA ALTA DE EMBUTIR (1 MÓDULO), 2P+T 10 A, INCLUINDO SUPORTE E PLACA - FORNECIMENTO E INSTALAÇÃO. AF_12/2015 | S138: UN | T138: 3 | U138: 1 | V138: 3 | Y138: 0 | Z138: 0
A139: S | B139: 2 | C139: S | D139: 0 | E139: 7 | F139: 2 | G139: 0 | H139: 0 | I139: 0 | J139: 0 | K139: 0 | M139: Serviço | N139: Serviço | O139: - | P139: AGETOP | Q139: 71440 | R139: INTERRUPTOR SIMPLES (1 SECAO) | S139: Un | T139: 11 | U139: 1 | V139: 11 | Y139: 0 | Z139: 0
A140: S | B140: 2 | C140: S | D140: 0 | E140: 7 | F140: 2 | G140: 0 | H140: 0 | I140: 0 | J140: 0 | K140: 0 | M140: Serviço | N140: Serviço | O140: - | P140: AGETOP | Q140: 71043 | R140: CONECTOR TRIPOLAR EM PORCELANA PARA FIOS DE ATÉ 10MM2 (BORNES) 50A-250V (CHUVEIRO) | S140: un | T140: 4 | U140: 1 | V140: 4 | Y140: 0 | Z140: 0
A141: S | B141: 2 | C141: S | D141: 0 | E141: 7 | F141: 2 | G141: 0 | H141: 0 | I141: 0 | J141: 0 | K141: 0 | M141: Serviço | N141: Serviço | O141: - | P141: AGETOP | Q141: 72575 | R141: TOMADA HEXAGONAL 2P + T - 20A - 250V (LINHA X OU EQUIVALENTE) | S141: Un | T141: 4 | U141: 1 | V141: 4 | Y141: 0 | Z141: 0
A142: S | B142: 2 | C142: S | D142: 0 | E142: 7 | F142: 2 | G142: 0 | H142: 0 | I142: 0 | J142: 0 | K142: 0 | M142: Serviço | N142: Serviço | O142: - | P142: SINAPI | Q142: 91926 | R142: CABO DE COBRE FLEXÍVEL ISOLADO, 2,5 MM², ANTI-CHAMA 450/750 V, PARA CIRCUITOS TERMINAIS - FORNECIMENTO E INSTALAÇÃO. AF_12/2015 | S142: M | T142: 755 | U142: 1 | V142: 755 | Y142: 0 | Z142: 0 | AA142: Referência: AGETOP - 70563
A143: S | B143: 2 | C143: S | D143: 0 | E143: 7 | F143: 2 | G143: 0 | H143: 0 | I143: 0 | J143: 0 | K143: 0 | M143: Serviço | N143: Serviço | O143: - | P143: SINAPI | Q143: 92982 | R143: CABO DE COBRE FLEXÍVEL ISOLADO, 16 MM², ANTI-CHAMA 0,6/1,0 KV, PARA DISTRIBUIÇÃO - FORNECIMENTO E INSTALAÇÃO. AF_12/2015 | S143: M | T143: 550 | U143: 1 | V143: 550 | Y143: 0 | Z143: 0
A144: S | B144: 2 | C144: S | D144: 0 | E144: 7 | F144: 2 | G144: 0 | H144: 0 | I144: 0 | J144: 0 | K144: 0 | M144: Serviço | N144: Serviço | O144: - | P144: AGETOP | Q144: 70634 | R144: CAIXA DE PASSAGEM - TAMPA EM CONCRETO ARMADO 25 MPA E=5CM | S144: m2 | T144: 2 | U144: 1 | V144: 2 | Y144: 0 | Z144: 0
A145: S | B145: 2 | C145: S | D145: 0 | E145: 7 | F145: 2 | G145: 0 | H145: 0 | I145: 0 | J145: 0 | K145: 0 | M145: Serviço | N145: Serviço | O145: - | P145: AGETOP | Q145: 70714 | R145: CAIXA DE PASSAGEM 50X50X80CM FUNDO DE BRITA SEM TAMPA | S145: Un | T145: 2 | U145: 1 | V145: 2 | Y145: 0 | Z145: 0
A146: S | B146: 2 | C146: S | D146: 0 | E146: 7 | F146: 2 | G146: 0 | H146: 0 | I146: 0 | J146: 0 | K146: 0 | M146: Serviço | N146: Serviço | O146: - | P146: SINAPI | Q146: 74131/6 | R146: QUADRO DE DISTRIBUICAO DE ENERGIA DE EMBUTIR, EM CHAPA METALICA, PARA 32 DISJUNTORES TERMOMAGNETICOS MONOPOLARES, COM BARRAMENTO TRIFASICO E NEUTRO, FORNECIMENTO E INSTALACAO | S146: UN | T146: 1 | U146: 1 | V146: 1 | Y146: 0 | Z146: 0
A147: S | B147: 2 | C147: S | D147: 0 | E147: 7 | F147: 2 | G147: 0 | H147: 0 | I147: 0 | J147: =IF(OR($C147="S",$C147=0),0,MATCH(0,OFFSET($D147,1,$C147,ROW($C$290)-ROW($C147)),0)) -> 0 | K147: =IF(OR($C147="S",$C147=0),0,MATCH(OFFSET($D147,0,$C147)+1,OFFSET($D147,1,$C147,ROW($C$290)-ROW($C147)),0)) -> 0 | M147: Serviço | N147: Serviço | O147: - | P147: AGETOP | Q147: 71184 | R147: DISPOSITIVO DE PROTEÇÃO CONTRA SURTOS (D.P.S.) 275V DE 8 A 40KA | S147: Un | T147: 3 | U147: 1 | V147: 3 | Y147: 0 | Z147: 0
A148: S | B148: 2 | C148: S | D148: 0 | E148: 7 | F148: 2 | G148: 0 | H148: 0 | I148: 0 | J148: 0 | K148: 0 | M148: Serviço | N148: Serviço | O148: - | P148: SINAPI | Q148: 93655 | R148: DISJUNTOR MONOPOLAR TIPO DIN, CORRENTE NOMINAL DE 20A - FORNECIMENTO E INSTALAÇÃO. AF_04/2016 | S148: UN | T148: 6 | U148: 1 | V148: 6 | Y148: 0 | Z148: 0
A149: S | B149: 2 | C149: S | D149: 0 | E149: 7 | F149: 2 | G149: 0 | H149: 0 | I149: 0 | J149: 0 | K149: 0 | M149: Serviço | N149: Serviço | O149: - | P149: SINAPI | Q149: 93654 | R149: DISJUNTOR MONOPOLAR TIPO DIN, CORRENTE NOMINAL DE 16A - FORNECIMENTO E INSTALAÇÃO. AF_04/2016 | S149: UN | T149: 12 | U149: 1 | V149: 12 | Y149: 0 | Z149: 0
A150: S | B150: 2 | C150: S | D150: 0 | E150: 7 | F150: 2 | G150: 0 | H150: 0 | I150: 0 | J150: 0 | K150: 0 | M150: Serviço | N150: Serviço | O150: - | P150: AGETOP | Q150: 71450 | R150: INTERRUPTOR DIFERENCIAL RESIDUAL (D.R.) BIPOLAR DE 25A-30mA | S150: Un | T150: 3 | U150: 1 | V150: 3 | Y150: 0 | Z150: 0
A151: S | B151: 2 | C151: S | D151: 0 | E151: 7 | F151: 2 | G151: 0 | H151: 0 | I151: 0 | J151: 0 | K151: 0 | M151: Serviço | N151: Serviço | O151: - | P151: SINAPI | Q151: 93672 | R151: DISJUNTOR TRIPOLAR TIPO DIN, CORRENTE NOMINAL DE 40A - FORNECIMENTO E INSTALAÇÃO. AF_04/2016 | S151: UN | T151: 2 | U151: 1 | V151: 2 | Y151: 0 | Z151: 0 | AA151: Referência: AGETOP - 71174
A152: S | B152: 2 | C152: S | D152: 0 | E152: 7 | F152: 2 | G152: 0 | H152: 0 | I152: 0 | J152: 0 | K152: 0 | M152: Serviço | N152: Serviço | O152: - | P152: AGETOP | Q152: 70764 | R152: CANALETA COM TAMPA (LINHA X OU EQUIVALENTE) 50X20X2000 MM | S152: M | T152: 2 | U152: 1 | V152: 2 | Y152: 0 | Z152: 0
A153: S | B153: 2 | C153: S | D153: 0 | E153: 7 | F153: 2 | G153: 0 | H153: 0 | I153: 0 | J153: 0 | K153: 0 | M153: Serviço | N153: Serviço | O153: - | P153: AGETOP | Q153: 72630 | R153: TRILHO OU SUPORTE P/BORNE TERMINAL | S153: M | T153: 2 | U153: 1 | V153: 2 | Y153: 0 | Z153: 0
A154: S | B154: 2 | C154: S | D154: 0 | E154: 7 | F154: 2 | G154: 0 | H154: 0 | I154: 0 | J154: 0 | K154: 0 | M154: Serviço | N154: Serviço | O154: - | P154: AGETOP | Q154: 71331 | R154: FITA ISOLANTE, ROLO DE 20,00 M | S154: Un | T154: 2 | U154: 1 | V154: 2 | Y154: 0 | Z154: 0
A155: S | B155: 2 | C155: S | D155: 0 | E155: 7 | F155: 2 | G155: 0 | H155: 0 | I155: 0 | J155: 0 | K155: 0 | M155: Serviço | N155: Serviço | O155: - | P155: AGETOP | Q155: 71321 | R155: FITA DE AUTO FUSAO, ROLO E 10,00 MM | S155: Un | T155: 4 | U155: 1 | V155: 4 | Y155: 0 | Z155: 0
A156: 1 | B156: 1 | C156: 1 | D156: 39 | E156: 8 | F156: 0 | G156: 0 | H156: 0 | I156: 0 | J156: 134 | K156: 39 | L156: F | M156: Nível 1 | N156: Nível 1 | O156: 8. | P156: AGETOP | R156: PROJETO ESTRUTURAL | S156: UN | T156: 1 | U156: 1 | V156: 1 | Y156: 0 | Z156: 0
A157: 2 | B157: 2 | C157: 2 | D157: 20 | E157: 8 | F157: 1 | G157: 0 | H157: 0 | I157: 0 | J157: 38 | K157: 20 | M157: Nível 2 | N157: Nível 2 | O157: - | P157: AGETOP | R157: FUNDAÇÕES E SONDAGENS | S157: - | U157: 1 | V157: - | Y157: 0 | Z157: 0
A158: 3 | B158: 3 | C158: 3 | D158: 7 | E158: 8 | F158: 1 | G158: 1 | H158: 0 | I158: 0 | J158: 19 | K158: 7 | M158: Nível 3 | N158: Nível 3 | O158: - | P158: SINAPI | R158: BLOCOS | S158: - | U158: 1 | V158: - | Y158: 0 | Z158: 0
A159: S | B159: 3 | C159: S | D159: 0 | E159: 8 | F159: 1 | G159: 1 | H159: 0 | I159: 0 | J159: 0 | K159: 0 | M159: Serviço | N159: Serviço | O159: - | P159: AGETOP | Q159: 50901 | R159: ESCAVACAO MANUAL DE VALAS (SAPATAS/BLOCOS) | S159: m3 | T159: 2.13 | U159: 1 | V159: 2.13 | Y159: 0 | Z159: 0
A160: S | B160: 3 | C160: S | D160: 0 | E160: 8 | F160: 1 | G160: 1 | H160: 0 | I160: 0 | J160: 0 | K160: 0 | M160: Serviço | N160: Serviço | O160: - | P160: AGETOP | Q160: 50902 | R160: APILOAMENTO (BLOCOS/SAPATAS) | S160: m2 | T160: 8 | U160: 1 | V160: 8 | Y160: 0 | Z160: 0
A161: S | B161: 3 | C161: S | D161: 0 | E161: 8 | F161: 1 | G161: 1 | H161: 0 | I161: 0 | J161: 0 | K161: 0 | M161: Serviço | N161: Serviço | O161: - | P161: AGETOP | Q161: 60470 | R161: LASTRO DE BRITA - (OBRAS CIVIS) | S161: m3 | T161: 0.4 | U161: 1 | V161: 0.4 | Y161: 0 | Z161: 0
A162: S | B162: 3 | C162: S | D162: 0 | E162: 8 | F162: 1 | G162: 1 | H162: 0 | I162: 0 | J162: 0 | K162: 0 | M162: Serviço | N162: Serviço | O162: - | P162: AGETOP | Q162: 51030 | R162: PREPARO COM BETONEIRA E TRANSPORTE MANUAL DE CONCRETO FCK=25 MPA | S162: m3 | T162: 2.13 | U162: 1 | V162: 2.13 | Y162: 0 | Z162: 0
A163: S | B163: 3 | C163: S | D163: 0 | E163: 8 | F163: 1 | G163: 1 | H163: 0 | I163: 0 | J163: 0 | K163: 0 | M163: Serviço | N163: Serviço | O163: - | P163: AGETOP | Q163: 51055 | R163: LANÇAMENTO/APLICAÇÃO/ADENSAMENTO MANUAL DE CONCRETO - (O.C.) | S163: m3 | T163: 2.13 | U163: 1 | V163: 2.13 | Y163: 0 | Z163: 0
A164: S | B164: 3 | C164: S | D164: 0 | E164: 8 | F164: 1 | G164: 1 | H164: 0 | I164: 0 | J164: 0 | K164: 0 | M164: Serviço | N164: Serviço | O164: - | P164: AGETOP | Q164: 52003 | R164: ACO CA-50A - 6,3 MM (1/4") - (OBRAS CIVIS) | S164: Kg | T164: 63.6 | U164: 1 | V164: 63.6 | Y164: 0 | Z164: 0
A165: 3 | B165: 3 | C165: 3 | D165: 10 | E165: 8 | F165: 1 | G165: 2 | H165: 0 | I165: 0 | J165: 12 | K165: 10 | M165: Nível 3 | N165: Nível 3 | O165: - | P165: SINAPI | R165: VIGAS BALDRAMES | S165: - | U165: 1 | V165: - | Y165: 0 | Z165: 0
A166: S | B166: 3 | C166: S | D166: 0 | E166: 8 | F166: 1 | G166: 2 | H166: 0 | I166: 0 | J166: 0 | K166: 0 | M166: Serviço | N166: Serviço | O166: - | P166: AGETOP | Q166: 40101 | R166: ESCAVACAO MANUAL DE VALAS < 1 MTS. (OBRAS CIVIS) | S166: m3 | T166: 7.47 | U166: 1 | V166: 7.47 | Y166: 0 | Z166: 0
A167: S | B167: 3 | C167: S | D167: 0 | E167: 8 | F167: 1 | G167: 2 | H167: 0 | I167: 0 | J167: 0 | K167: 0 | M167: Serviço | N167: Serviço | O167: - | P167: AGETOP | Q167: 50902 | R167: APILOAMENTO (BLOCOS/SAPATAS) | S167: m2 | T167: 10.67 | U167: 1 | V167: 10.67 | Y167: 0 | Z167: 0
A168: S | B168: 3 | C168: S | D168: 0 | E168: 8 | F168: 1 | G168: 2 | H168: 0 | I168: 0 | J168: 0 | K168: 0 | M168: Serviço | N168: Serviço | O168: - | P168: AGETOP | Q168: 60470 | R168: LASTRO DE BRITA - (OBRAS CIVIS) | S168: m3 | T168: 0.5335 | U168: 1 | V168: 0.5335 | Y168: 0 | Z168: 0
A169: S | B169: 3 | C169: S | D169: 0 | E169: 8 | F169: 1 | G169: 2 | H169: 0 | I169: 0 | J169: 0 | K169: 0 | M169: Serviço | N169: Serviço | O169: - | P169: AGETOP | Q169: 60191 | R169: FORMA DE TABUA CINTA BALDRAME U=8 VEZES | S169: m2 | T169: 42.67 | U169: 1 | V169: 42.67 | Y169: 0 | Z169: 0
A170: S | B170: 3 | C170: S | D170: 0 | E170: 8 | F170: 1 | G170: 2 | H170: 0 | I170: 0 | J170: 0 | K170: 0 | M170: Serviço | N170: Serviço | O170: - | P170: AGETOP | Q170: 51030 | R170: PREPARO COM BETONEIRA E TRANSPORTE MANUAL DE CONCRETO FCK=25 MPA | S170: m3 | T170: 3.2 | U170: 1 | V170: 3.2 | Y170: 0 | Z170: 0
A171: S | B171: 3 | C171: S | D171: 0 | E171: 8 | F171: 1 | G171: 2 | H171: 0 | I171: 0 | J171: 0 | K171: 0 | M171: Serviço | N171: Serviço | O171: - | P171: AGETOP | Q171: 51055 | R171: LANÇAMENTO/APLICAÇÃO/ADENSAMENTO MANUAL DE CONCRETO - (O.C.) | S171: m3 | T171: 3.2 | U171: 1 | V171: 3.2 | Y171: 0 | Z171: 0
A172: S | B172: 3 | C172: S | D172: 0 | E172: 8 | F172: 1 | G172: 2 | H172: 0 | I172: 0 | J172: 0 | K172: 0 | M172: Serviço | N172: Serviço | O172: - | P172: AGETOP | Q172: 40902 | R172: REATERRO COM APILOAMENTO | S172: m3 | T172: 4.27 | U172: 1 | V172: 4.27 | Y172: 0 | Z172: 0
A173: S | B173: 3 | C173: S | D173: 0 | E173: 8 | F173: 1 | G173: 2 | H173: 0 | I173: 0 | J173: 0 | K173: 0 | M173: Serviço | N173: Serviço | O173: - | P173: AGETOP | Q173: 52004 | R173: ACO CA 50-A - 8,0 MM (5/16") - (OBRAS CIVIS) | S173: Kg | T173: 113.8 | U173: 1 | V173: 113.8 | Y173: 0 | Z173: 0
A174: S | B174: 3 | C174: S | D174: 0 | E174: 8 | F174: 1 | G174: 2 | H174: 0 | I174: 0 | J174: 0 | K174: 0 | M174: Serviço | N174: Serviço | O174: - | P174: AGETOP | Q174: 52014 | R174: ACO CA-60 - 5,0 MM - (OBRAS CIVIS) | S174: Kg | T174: 50.3 | U174: 1 | V174: 50.3 | Y174: 0 | Z174: 0
A175: 3 | B175: 3 | C175: 3 | D175: 2 | E175: 8 | F175: 1 | G175: 3 | H175: 0 | I175: 0 | J175: 2 | K175: 98 | M175: Nível 3 | N175: Nível 3 | O175: - | P175: SINAPI | R175: OUTROS | S175: - | U175: 1 | V175: - | Y175: 0 | Z175: 0
A176: S | B176: 3 | C176: S | D176: 0 | E176: 8 | F176: 1 | G176: 3 | H176: 0 | I176: 0 | J176: 0 | K176: 0 | M176: Serviço | N176: Serviço | O176: - | P176: AGETOP | Q176: 120902 | R176: IMPERMEABILIZACAO VIGAS BALDRAMES E=2,0 CM | S176: m2 | T176: 53.29 | U176: 1 | V176: 53.29 | Y176: 0 | Z176: 0
A177: 2 | B177: 2 | C177: 2 | D177: 18 | E177: 8 | F177: 2 | G177: 0 | H177: 0 | I177: 0 | J177: 18 | M177: Nível 2 | N177: Nível 2 | O177: - | P177: AGETOP | R177: ESTRUTURA | S177: - | U177: 1 | V177: - | Y177: 0 | Z177: 0
A178: 3 | B178: 3 | C178: 3 | D178: 6 | E178: 8 | F178: 2 | G178: 1 | H178: 0 | I178: 0 | J178: 17 | K178: 6 | M178: Nível 3 | N178: Nível 3 | O178: - | P178: AGETOP | R178: PILARES | S178: - | U178: 1 | V178: - | Y178: 0 | Z178: 0
A179: S | B179: 3 | C179: S | D179: 0 | E179: 8 | F179: 2 | G179: 1 | H179: 0 | I179: 0 | J179: =IF(OR($C179="S",$C179=0),0,MATCH(0,OFFSET($D179,1,$C179,ROW($C$290)-ROW($C179)),0)) -> 0 | K179: =IF(OR($C179="S",$C179=0),0,MATCH(OFFSET($D179,0,$C179)+1,OFFSET($D179,1,$C179,ROW($C$290)-ROW($C179)),0)) -> 0 | M179: Serviço | N179: Serviço | O179: - | P179: SINAPI | Q179: 92426 | R179: MONTAGEM E DESMONTAGEM DE FÔRMA DE PILARES RETANGULARES E ESTRUTURAS SIMILARES COM ÁREA MÉDIA DAS SEÇÕES MENOR OU IGUAL A 0,25 M², PÉ-DIREITO SIMPLES, EM CHAPA DE MADEIRA COMPENSADA RESINADA, 8 UTILIZAÇÕES. AF_12/2015 | S179: M2 | T179: 64.8 | U179: 1 | V179: 64.8 | Y179: 0 | Z179: 0
A180: S | B180: 3 | C180: S | D180: 0 | E180: 8 | F180: 2 | G180: 1 | H180: 0 | I180: 0 | J180: 0 | K180: 0 | M180: Serviço | N180: Serviço | O180: - | P180: SINAPI | Q180: 94965 | R180: CONCRETO FCK = 25MPA, TRAÇO 1:2,3:2,7 (CIMENTO/ AREIA MÉDIA/ BRITA 1) - PREPARO MECÂNICO COM BETONEIRA 400 L. AF_07/2016 | S180: M3 | T180: 3.24 | U180: 1 | V180: 3.24 | Y180: 0 | Z180: 0 | AA180: Referência: AGETOP - 51030
A181: S | B181: 3 | C181: S | D181: 0 | E181: 8 | F181: 2 | G181: 1 | H181: 0 | I181: 0 | J181: 0 | K181: 0 | M181: Serviço | N181: Serviço | O181: - | P181: AGETOP | Q181: 60801 | R181: LANÇAMENTO/APLICAÇÃO/ADENSAMENTO MANUAL DE CONCRETO - (OBRAS CIVIS) | S181: m3 | T181: 3.24 | U181: 1 | V181: 3.24 | Y181: 0 | Z181: 0
A182: S | B182: 3 | C182: S | D182: 0 | E182: 8 | F182: 2 | G182: 1 | H182: 0 | I182: 0 | J182: 0 | K182: 0 | M182: Serviço | N182: Serviço | O182: - | P182: AGETOP | Q182: 60305 | R182: ACO CA-50A - 10,0 MM (3/8") - (OBRAS CIVIS) | S182: Kg | T182: 199.3 | U182: 1 | V182: 199.3 | Y182: 0 | Z182: 0
A183: S | B183: 3 | C183: S | D183: 0 | E183: 8 | F183: 2 | G183: 1 | H183: 0 | I183: 0 | J183: 0 | K183: 0 | M183: Serviço | N183: Serviço | O183: - | P183: AGETOP | Q183: 60314 | R183: ACO CA - 60 - 5,0 MM - (OBRAS CIVIS) | S183: Kg | T183: 80.5 | U183: 1 | V183: 80.5 | Y183: 0 | Z183: 0
A184: 3 | B184: 3 | C184: 3 | D184: 8 | E184: 8 | F184: 2 | G184: 2 | H184: 0 | I184: 0 | J184: 11 | K184: 8 | M184: Nível 3 | N184: Nível 3 | O184: - | R184: VIGAS DE COBERTURA | S184: - | U184: 1 | V184: - | Y184: 0 | Z184: 0
A185: S | B185: 3 | C185: S | D185: 0 | E185: 8 | F185: 2 | G185: 2 | H185: 0 | I185: 0 | J185: 0 | K185: 0 | M185: Serviço | N185: Serviço | O185: - | P185: AGETOP | Q185: 60209 | R185: FORMA CH.COMPENSADA 12MM-VIGA/PILAR U=4V - (OBRAS CIVIS | S185: m2 | T185: 64.58 | U185: 1 | V185: 64.58 | Y185: 0 | Z185: 0
A186: S | B186: 3 | C186: S | D186: 0 | E186: 8 | F186: 2 | G186: 2 | H186: 0 | I186: 0 | J186: 0 | K186: 0 | M186: Serviço | N186: Serviço | O186: - | P186: SINAPI | Q186: 94965 | R186: CONCRETO FCK = 25MPA, TRAÇO 1:2,3:2,7 (CIMENTO/ AREIA MÉDIA/ BRITA 1) - PREPARO MECÂNICO COM BETONEIRA 400 L. AF_07/2016 | S186: M3 | T186: 3.94 | U186: 1 | V186: 3.94 | Y186: 0 | Z186: 0 | AA186: Referência: AGETOP - 51030
A187: S | B187: 3 | C187: S | D187: 0 | E187: 8 | F187: 2 | G187: 2 | H187: 0 | I187: 0 | J187: 0 | K187: 0 | M187: Serviço | N187: Serviço | O187: - | P187: AGETOP | Q187: 60801 | R187: LANÇAMENTO/APLICAÇÃO/ADENSAMENTO MANUAL DE CONCRETO - (OBRAS CIVIS) | S187: m3 | T187: 3.94 | U187: 1 | V187: 3.94 | Y187: 0 | Z187: 0
A188: S | B188: 3 | C188: S | D188: 0 | E188: 8 | F188: 2 | G188: 2 | H188: 0 | I188: 0 | J188: 0 | K188: 0 | M188: Serviço | N188: Serviço | O188: - | P188: AGETOP | Q188: 60303 | R188: ACO CA-50-A - 6,3 MM (1/4") - (OBRAS CIVIS) | S188: Kg | T188: 3.4 | U188: 1 | V188: 3.4 | Y188: 0 | Z188: 0
A189: S | B189: 3 | C189: S | D189: 0 | E189: 8 | F189: 2 | G189: 2 | H189: 0 | I189: 0 | J189: 0 | K189: 0 | M189: Serviço | N189: Serviço | O189: - | P189: AGETOP | Q189: 60304 | R189: ACO CA-50 A - 8,0 MM (5/16") - (OBRAS CIVIS) | S189: Kg | T189: 125.5 | U189: 1 | V189: 125.5 | Y189: 0 | Z189: 0
A190: S | B190: 3 | C190: S | D190: 0 | E190: 8 | F190: 2 | G190: 2 | H190: 0 | I190: 0 | J190: 0 | K190: 0 | M190: Serviço | N190: Serviço | O190: - | P190: AGETOP | Q190: 60305 | R190: ACO CA-50A - 10,0 MM (3/8") - (OBRAS CIVIS) | S190: Kg | T190: 17.2 | U190: 1 | V190: 17.2 | Y190: 0 | Z190: 0
A191: S | B191: 3 | C191: S | D191: 0 | E191: 8 | F191: 2 | G191: 2 | H191: 0 | I191: 0 | J191: 0 | K191: 0 | M191: Serviço | N191: Serviço | O191: - | P191: AGETOP | Q191: 60314 | R191: ACO CA - 60 - 5,0 MM - (OBRAS CIVIS) | S191: Kg | T191: 58.3 | U191: 1 | V191: 58.3 | Y191: 0 | Z191: 0
A192: 3 | B192: 3 | C192: 3 | D192: 3 | E192: 8 | F192: 2 | G192: 3 | H192: 0 | I192: 0 | J192: 3 | K192: 81 | M192: Nível 3 | N192: Nível 3 | O192: - | R192: LAJE | S192: - | U192: 1 | V192: - | Y192: 0 | Z192: 0
A193: 4 | B193: 4 | C193: 4 | D193: 2 | E193: 8 | F193: 2 | G193: 3 | H193: 1 | I193: 0 | J193: 2 | K193: 16 | M193: Nível 4 | N193: Nível 4 | O193: - | P193: SINAPI | R193: LAJE TRELIÇADA | S193: - | U193: 1 | V193: - | Y193: 0 | Z193: 0
A194: S | B194: 4 | C194: S | D194: 0 | E194: 8 | F194: 2 | G194: 3 | H194: 1 | I194: 0 | J194: 0 | K194: 0 | M194: Serviço | N194: Serviço | O194: - | P194: AGETOP | Q194: 61101 | R194: FORRO EM LAJE PRE-MOLDADA INC.CAPEAMENTO/FERR.DISTRIB./ESCORAMENTO E FORMA/DESFORMA | S194: m2 | T194: 82.5 | U194: 1 | V194: 82.5 | Y194: 0 | Z194: 0
A195: 1 | B195: 1 | C195: 1 | D195: 85 | E195: 9 | F195: 0 | G195: 0 | H195: 0 | I195: 0 | J195: 95 | K195: 85 | L195: F | M195: Nível 1 | N195: Nível 1 | O195: 9. | P195: AGETOP | R195: PROJETO HIDROSSANITÁRIO | S195: UN | T195: 1 | U195: 1 | V195: 1 | Y195: 0 | Z195: 0
A196: 2 | B196: 2 | C196: 2 | D196: 84 | E196: 9 | F196: 1 | G196: 0 | H196: 0 | I196: 0 | J196: 84 | M196: Nível 2 | N196: Nível 2 | O196: - | P196: AGETOP | R196: INSTALAÇÕES HIDROSSANITÁRIAS | S196: - | U196: 1 | V196: - | Y196: 0 | Z196: 0
A197: 3 | B197: 3 | C197: 3 | D197: 28 | E197: 9 | F197: 1 | G197: 1 | H197: 0 | I197: 0 | J197: 83 | K197: 28 | M197: Nível 3 | N197: Nível 3 | O197: - | P197: SINAPI | R197: PEÇAS E ACESSÓRIOS | S197: - | U197: 1 | V197: - | Y197: 0 | Z197: 0
A198: 4 | B198: 4 | C198: 4 | D198: 11 | E198: 9 | F198: 1 | G198: 1 | H198: 1 | I198: 0 | J198: 27 | K198: 11 | M198: Nível 4 | N198: Nível 4 | O198: - | P198: SINAPI | R198: VASO SANITÁRIO E ACESSÓRIOS | S198: - | U198: 1 | V198: - | Y198: 0 | Z198: 0
A199: S | B199: 4 | C199: S | D199: 0 | E199: 9 | F199: 1 | G199: 1 | H199: 1 | I199: 0 | J199: 0 | K199: 0 | M199: Serviço | N199: Serviço | O199: - | P199: SINAPI | Q199: 95469 | R199: VASO SANITARIO SIFONADO CONVENCIONAL COM LOUÇA BRANCA - FORNECIMENTO E INSTALAÇÃO. AF_01/2020 | S199: UN | T199: 1 | U199: 1 | V199: 1 | Y199: 0 | Z199: 0
A200: S | B200: 4 | C200: S | D200: 0 | E200: 9 | F200: 1 | G200: 1 | H200: 1 | I200: 0 | J200: 0 | K200: 0 | M200: Serviço | N200: Serviço | O200: - | P200: AGETOP | Q200: 80517 | R200: VÁLVULA DE DESCARGA DUPLO ACIONAMENTO COM ACABAMENTO CROMADO ANTIVANDALISMO | S200: Un | T200: 1 | U200: 1 | V200: 1 | Y200: 0 | Z200: 0
A201: S | B201: 4 | C201: S | D201: 0 | E201: 9 | F201: 1 | G201: 1 | H201: 1 | I201: 0 | J201: 0 | K201: 0 | M201: Serviço | N201: Serviço | O201: - | P201: SINAPI | Q201: 95471 | R201: VASO SANITARIO SIFONADO CONVENCIONAL PARA PCD SEM FURO FRONTAL COM LOUÇA BRANCA SEM ASSENTO - FORNECIMENTO E INSTALAÇÃO. AF_01/2020 | S201: UN | T201: 1 | U201: 1 | V201: 1 | Y201: 0 | Z201: 0
A202: S | B202: 4 | C202: S | D202: 0 | E202: 9 | F202: 1 | G202: 1 | H202: 1 | I202: 0 | J202: 0 | K202: 0 | M202: Serviço | N202: Serviço | O202: - | P202: AGETOP | Q202: 80519 | R202: VÁLVULA DE DESCARGA PARA P.N.E. COM ACABAMENTO CROMADO ANTIVANDALISMO | S202: un | T202: 1 | U202: 1 | V202: 1 | Y202: 0 | Z202: 0
A203: S | B203: 4 | C203: S | D203: 0 | E203: 9 | F203: 1 | G203: 1 | H203: 1 | I203: 0 | J203: 0 | K203: 0 | M203: Serviço | N203: Serviço | O203: - | P203: AGETOP | Q203: 80520 | R203: CONJUNTO DE FIXACAO P/VASO SANITARIO (PAR) | S203: CJ | T203: 2 | U203: 1 | V203: 2 | Y203: 0 | Z203: 0
A204: S | B204: 4 | C204: S | D204: 0 | E204: 9 | F204: 1 | G204: 1 | H204: 1 | I204: 0 | J204: 0 | K204: 0 | M204: Serviço | N204: Serviço | O204: - | P204: AGETOP | Q204: 80526 | R204: ASSENTO EM POLIPROPILENO COM SISTEMA DE FECHAMENTO SUAVE PARA VASO SANITÁRIO | S204: Un | T204: 2 | U204: 1 | V204: 2 | Y204: 0 | Z204: 0
A205: S | B205: 4 | C205: S | D205: 0 | E205: 9 | F205: 1 | G205: 1 | H205: 1 | I205: 0 | J205: 0 | K205: 0 | M205: Serviço | N205: Serviço | O205: - | P205: AGETOP | Q205: 80513 | R205: TUBO PARA VÁLVULA DE DESCARGA ( CURTO 1.1/4" ) | S205: Un | T205: 2 | U205: 1 | V205: 2 | Y205: 0 | Z205: 0
A206: S | B206: 4 | C206: S | D206: 0 | E206: 9 | F206: 1 | G206: 1 | H206: 1 | I206: 0 | J206: 0 | K206: 0 | M206: Serviço | N206: Serviço | O206: - | P206: AGETOP | Q206: 80514 | R206: TUBO DE LIGACAO PVC CROMADO 1.1/2" / ESPUDE - (ENTRADA) | S206: Un | T206: 2 | U206: 1 | V206: 2 | Y206: 0 | Z206: 0
... 157 more rows

Sheet Resumo
B2: UNIDADE ESCOLAR | G2: CÓDIGO INEP
B3: =Orçamento!$O$4 -> COORDENAÇÃO REGIONAL DE EDUAÇÃO DE RIO VERDE | G3: =Orçamento!X4 -> 0
B5: OBRA | G5: CIDADE
B6: =Orçamento!$O$7 -> IMPLANTAÇÃO | G6: =Orçamento!$X$7 -> RIO VERDE
B8: ENDEREÇO | G8: CRE
B9: =Orçamento!$R$10 -> RUA 15-A, BAIRRO POPULAR | G9: =Orçamento!$O$10 -> RIO VERDE
B11: REFERÊNCIA | D11: DATA | G11: ÁREA TOTAL CONSTRUÍDA (M²)
B12: =CONCATENATE("AGETOP E SINAPI - ",Orçamento!$T$10) -> AGETOP E SINAPI - DESONERADA | D12: =Orçamento!$S$7 -> 2020-07-23 | G12: =Orçamento!$X$13 -> 100.68
A13: FILTRO
B14: RESUMO GERAL DO ORÇAMENTO
A15: ↓ | B15: ITEM | C15: DESCRIÇÃO DOS SERVIÇOS | G15: PREÇO SEM BDI | H15: PREÇO COM BDI | I15: PARTICIP. (%)
A16: =IF(G16>0,"F","") ->  | B16: 1. | C16: =Orçamento!$P343 -> NOVO BLOCO ADMINISTRATIVO | G16: =IFERROR(Orçamento!S343,"-") -> 0 | H16: =IFERROR(Orçamento!X343,"") -> 0 | I16: =Orçamento!AA343 -> 
A17: =IF(G17>0,"F","") ->  | B17: 2. | C17: =Orçamento!$P344 -> IMPLANTAÇÃO BLOCO ADMINISTRATIVO | G17: =IFERROR(Orçamento!S344,"-") -> 0 | H17: =IFERROR(Orçamento!X344,"") -> 0 | I17: =Orçamento!AA344 -> 
B18: 3. | C18: =Orçamento!$P345 -> RAMPA DE ACESSO | G18: =IFERROR(Orçamento!S345,"-") -> 0 | H18: =IFERROR(Orçamento!X345,"") -> 0 | I18: =Orçamento!AA345 -> 
B19: 4. | C19: =Orçamento!$P346 -> PORTÃO PEDESTRES | G19: =IFERROR(Orçamento!S346,"-") -> 0 | H19: =IFERROR(Orçamento!X346,"") -> 0 | I19: =Orçamento!AA346 -> 
B20: 5. | C20: =Orçamento!$P347 -> ADMINISTRAÇÃO LOCAL | G20: =IFERROR(Orçamento!S347,"-") -> 0 | H20: =IFERROR(Orçamento!X347,"") -> 0 | I20: =Orçamento!AA347 -> 
B21: 6. | C21: =Orçamento!$P348 -> OBRA | G21: =IFERROR(Orçamento!S348,"-") -> 0 | H21: =IFERROR(Orçamento!X348,"") -> 0 | I21: =Orçamento!AA348 -> 
B22: 7. | C22: =Orçamento!$P349 -> PROJETO ELÉTRICO | G22: =IFERROR(Orçamento!S349,"-") -> 0 | H22: =IFERROR(Orçamento!X349,"") -> 0 | I22: =Orçamento!AA349 -> 
B23: 8. | C23: =Orçamento!$P350 -> PROJETO ESTRUTURAL | G23: =IFERROR(Orçamento!S350,"-") -> 0 | H23: =IFERROR(Orçamento!X350,"") -> 0 | I23: =Orçamento!AA350 -> 
B24: 9. | C24: =Orçamento!$P351 -> PROJETO HIDROSSANITÁRIO | G24: =IFERROR(Orçamento!S351,"-") -> 0 | H24: =IFERROR(Orçamento!X351,"") -> 0 | I24: =Orçamento!AA351 -> 
B25: 10. | C25: =Orçamento!$P352 -> PROJETO DE PREVENÇÃO E COMBATE A INCÊNDIO | G25: =IFERROR(Orçamento!S352,"-") -> 0 | H25: =IFERROR(Orçamento!X352,"") -> 0 | I25: =Orçamento!AA352 -> 
B26: 11. | C26: =Orçamento!$P353 -> PROJETO ESTRUTURAS METÁLICAS | G26: =IFERROR(Orçamento!S353,"-") -> 0 | H26: =IFERROR(Orçamento!X353,"") -> 0 | I26: =Orçamento!AA353 -> 
B27: 12. | C27: =Orçamento!$P354 ->  | G27: =IFERROR(Orçamento!S354,"-") -> 0 | H27: =IFERROR(Orçamento!X354,"") -> 0 | I27: =Orçamento!AA354 -> 
B28: 13. | C28: =Orçamento!$P355 ->  | G28: =IFERROR(Orçamento!S355,"-") -> 0 | H28: =IFERROR(Orçamento!X355,"") -> 0 | I28: =Orçamento!AA355 -> 
B29: 14. | C29: =Orçamento!$P356 ->  | G29: =IFERROR(Orçamento!S356,"-") -> 0 | H29: =IFERROR(Orçamento!X356,"") -> 0 | I29: =Orçamento!AA356 -> 
B30: 15. | C30: =Orçamento!$P357 ->  | G30: =IFERROR(Orçamento!S357,"-") -> 0 | H30: =IFERROR(Orçamento!X357,"") -> 0 | I30: =Orçamento!AA357 -> 
B31: 16. | C31: =Orçamento!$P358 ->  | G31: =IFERROR(Orçamento!S358,"-") -> 0 | H31: =IFERROR(Orçamento!X358,"") -> 0 | I31: =Orçamento!AA358 -> 
B32: 17. | C32: =Orçamento!$P359 ->  | G32: =IFERROR(Orçamento!S359,"-") -> 0 | H32: =IFERROR(Orçamento!X359,"") -> 0 | I32: =Orçamento!AA359 -> 
B33: 18. | C33: =Orçamento!$P360 ->  | G33: =IFERROR(Orçamento!S360,"-") -> 0 | H33: =IFERROR(Orçamento!X360,"") -> 0 | I33: =Orçamento!AA360 -> 
B34: 19. | C34: =Orçamento!$P361 ->  | G34: =IFERROR(Orçamento!S361,"-") -> 0 | H34: =IFERROR(Orçamento!X361,"") -> 0 | I34: =Orçamento!AA361 -> 
B35: 20. | C35: =Orçamento!$P362 ->  | G35: =IFERROR(Orçamento!S362,"-") -> 0 | H35: =IFERROR(Orçamento!X362,"") -> 0 | I35: =Orçamento!AA362 -> 
A36: F | B36: TOTAL GERAL DO ORÇAMENTO (R$) | G36: =SUM(G16:G35) -> 0 | H36: =SUM(H16:H35) -> 0 | I36: =SUM(I16:I35) -> 
A37: F
A38: F

Sheet Somatório
B2: UNIDADE ESCOLAR | E2: CÓDIGO INEP
B3: =Orçamento!$O$4 -> COORDENAÇÃO REGIONAL DE EDUAÇÃO DE RIO VERDE | E3: =Orçamento!X4 -> 0
B5: OBRA | E5: CIDADE
B6: =Orçamento!$O$7 -> IMPLANTAÇÃO | E6: =Orçamento!$X$7 -> RIO VERDE
B8: ENDEREÇO | E8: CRE
B9: =Orçamento!$R$10 -> RUA 15-A, BAIRRO POPULAR | E9: =Orçamento!$O$10 -> RIO VERDE
B11: REFERÊNCIA | D11: DATA | E11: ÁREA TOTAL CONSTRUÍDA (M²)
B12: =CONCATENATE("AGETOP E SINAPI - ",Orçamento!$T$10) -> AGETOP E SINAPI - DESONERADA | D12: =Orçamento!$S$7 -> 2020-07-23 | E12: =Orçamento!$X$13 -> 100.68
A13: FILTRO
B14: SOMATÓRIO DE SERVIÇOS
A15: ↓ | B15: ITEM | C15: DESCRIÇÃO DOS SERVIÇOS | D15: PREÇO SEM BDI (R$) | E15: PREÇO COM BDI (R$) | F15: PARTIC. ( % )
A16: =IF(D16>0,"F","") ->  | B16: a. | C16: =Orçamento!P309 -> SERVIÇOS PRELIMINARES | D16: =Orçamento!S309 -> 0 | E16: =Orçamento!X309 -> 0 | F16: =Orçamento!AA309 -> 0
A17: =IF(D17>0,"F","") ->  | B17: b. | C17: =Orçamento!P310 -> TRANSPORTES | D17: =Orçamento!S310 -> 0 | E17: =Orçamento!X310 -> 0 | F17: =Orçamento!AA310 -> 0
B18: c. | C18: =Orçamento!P311 -> SERVIÇO EM TERRA | D18: =Orçamento!S311 -> 0 | E18: =Orçamento!X311 -> 0 | F18: =Orçamento!AA311 -> 0
B19: d. | C19: =Orçamento!P312 -> FUNDAÇÕES E SONDAGENS | D19: =Orçamento!S312 -> 0 | E19: =Orçamento!X312 -> 0 | F19: =Orçamento!AA312 -> 0
B20: e. | C20: =Orçamento!P313 -> ESTRUTURA | D20: =Orçamento!S313 -> 0 | E20: =Orçamento!X313 -> 0 | F20: =Orçamento!AA313 -> 0
B21: f. | C21: =Orçamento!P314 -> INSTALAÇÕES ELÉTRICAS | D21: =Orçamento!S314 -> 0 | E21: =Orçamento!X314 -> 0 | F21: =Orçamento!AA314 -> 0
B22: g. | C22: =Orçamento!P315 -> INSTALAÇÕES HIDROSSANITÁRIAS | D22: =Orçamento!S315 -> 0 | E22: =Orçamento!X315 -> 0 | F22: =Orçamento!AA315 -> 0
B23: h | C23: =Orçamento!P316 -> INSTALAÇÕES ESPECIAIS | D23: =Orçamento!S316 -> 0 | E23: =Orçamento!X316 -> 0 | F23: =Orçamento!AA316 -> 0
B24: i. | C24: =Orçamento!P317 -> ALVENARIAS E DIVISÓRIAS | D24: =Orçamento!S317 -> 0 | E24: =Orçamento!X317 -> 0 | F24: =Orçamento!AA317 -> 0
B25: j. | C25: =Orçamento!P318 -> ALVENARIA AUTO-PORTANTE | D25: =Orçamento!S318 -> 0 | E25: =Orçamento!X318 -> 0 | F25: =Orçamento!AA318 -> 0
B26: k. | C26: =Orçamento!P319 -> IMPERMEABILIZAÇÃO | D26: =Orçamento!S319 -> 0 | E26: =Orçamento!X319 -> 0 | F26: =Orçamento!AA319 -> 0
B27: l. | C27: =Orçamento!P320 -> ISOLAMENTO TÉRMICO E ACÚSTICO | D27: =Orçamento!S320 -> 0 | E27: =Orçamento!X320 -> 0 | F27: =Orçamento!AA320 -> 0
B28: m. | C28: =Orçamento!P321 -> ESTRUTURA DE MADEIRA | D28: =Orçamento!S321 -> 0 | E28: =Orçamento!X321 -> 0 | F28: =Orçamento!AA321 -> 0
B29: n. | C29: =Orçamento!P322 -> ESTRUTURAS METÁLICAS | D29: =Orçamento!S322 -> 0 | E29: =Orçamento!X322 -> 0 | F29: =Orçamento!AA322 -> 0
B30: o. | C30: =Orçamento!P323 -> COBERTURAS | D30: =Orçamento!S323 -> 0 | E30: =Orçamento!X323 -> 0 | F30: =Orçamento!AA323 -> 0
B31: p. | C31: =Orçamento!P324 -> ESQUADRIAS DE MADEIRA | D31: =Orçamento!S324 -> 0 | E31: =Orçamento!X324 -> 0 | F31: =Orçamento!AA324 -> 0
B32: q. | C32: =Orçamento!P325 -> ESQUADRIAS METÁLICAS | D32: =Orçamento!S325 -> 0 | E32: =Orçamento!X325 -> 0 | F32: =Orçamento!AA325 -> 0
B33: r. | C33: =Orçamento!P326 -> VIDROS | D33: =Orçamento!S326 -> 0 | E33: =Orçamento!X326 -> 0 | F33: =Orçamento!AA326 -> 0
B34: s. | C34: =Orçamento!P327 -> REVESTIMENTO DE PAREDE | D34: =Orçamento!S327 -> 0 | E34: =Orçamento!X327 -> 0 | F34: =Orçamento!AA327 -> 0
B35: t. | C35: =Orçamento!P328 -> FORROS | D35: =Orçamento!S328 -> 0 | E35: =Orçamento!X328 -> 0 | F35: =Orçamento!AA328 -> 0
B36: u. | C36: =Orçamento!P329 -> REVESTIMENTO DE PISO | D36: =Orçamento!S329 -> 0 | E36: =Orçamento!X329 -> 0 | F36: =Orçamento!AA329 -> 0
B37: v. | C37: =Orçamento!P330 -> FERRAGENS | D37: =Orçamento!S330 -> 0 | E37: =Orçamento!X330 -> 0 | F37: =Orçamento!AA330 -> 0
B38: w. | C38: =Orçamento!P331 -> MARCENARIA | D38: =Orçamento!S331 -> 0 | E38: =Orçamento!X331 -> 0 | F38: =Orçamento!AA331 -> 0
B39: x. | C39: =Orçamento!P332 -> ADMINISTRAÇÃO | D39: =Orçamento!S332 -> 0 | E39: =Orçamento!X332 -> 0 | F39: =Orçamento!AA332 -> 0
B40: y. | C40: =Orçamento!P333 -> PINTURA | D40: =Orçamento!S333 -> 0 | E40: =Orçamento!X333 -> 0 | F40: =Orçamento!AA333 -> 0
B41: z. | C41: =Orçamento!P334 -> DIVERSOS | D41: =Orçamento!S334 -> 0 | E41: =Orçamento!X334 -> 0 | F41: =Orçamento!AA334 -> 0
A42: F | B42: TOTAL GERAL DO ORÇAMENTO | D42: =SUM(D16:D41) -> 0 | E42: =SUM(E16:E41) -> 0 | F42: =SUM(F16:F41) -> 0
B44: (*) Para itens da AGETOP, os vidros não estão inclusos nas esquadrias e já foram considerados os custos de contramarco para as esquadrias de alumínio;

Sheet Cronog_60_Dias
B2: UNIDADE ESCOLAR | I2: PRAZO
B3: =Orçamento!$O$4 -> COORDENAÇÃO REGIONAL DE EDUAÇÃO DE RIO VERDE | I3: 60 DIAS CORRIDOS
B5: OBRA | I5: DATA
B6: =Orçamento!$O$7 -> IMPLANTAÇÃO | I6: =Orçamento!$S$7 -> 2020-07-23
B8: LOCAL | I8: ÁREA TOTAL CONSTRUÍDA (M²)
A9: FILTRO | B9: =Orçamento!$X$7 -> RIO VERDE | I9: =Orçamento!$X$13 -> 100.68
B11: CRONOGRAMA - FÍSICO FINANCEIRO
A12: ↓ | B12: CUSTO TOTAL: | C12: =D92 -> 0 | D12: VALOR | E12: Dias: | F12: 30 | J12: 60 | N12: TOTAL
B13: DESCRIÇÃO DOS SERVIÇOS | E13: % | F13: 1ª PARCELA | J13: 2ª PARCELA
A14: =IF(D14>0,"F","") ->  | B14: SERVIÇOS PRELIMINARES | D14: =Orçamento!X309 -> 0 | E14: =Orçamento!AA309 -> 0 | F14: =ROUND(F16*$D$14,2) -> 0 | J14: =ROUND(J16*$D$14,2) -> 0 | N14: =SUM(F14:M14) -> 0
A15: =IF(A14="F",A14,"") -> 
A16: =IF(A15="F",A15,"") ->  | F16: 1 | J16: =1-F16 -> 0 | N16: =IFERROR(E14/100,"") -> 0
A17: =IF(D17>0,"F","") ->  | B17: TRANSPORTES | D17: =Orçamento!X310 -> 0 | E17: =Orçamento!AA310 -> 0 | F17: =ROUND(F19*$D$17,2) -> 0 | J17: =ROUND(J19*$D$17,2) -> 0 | N17: =SUM(F17:M17) -> 0
A18: =IF(A17="F",A17,"") -> 
A19: =IF(A18="F",A18,"") ->  | F19: 0.48 | J19: =1-F19 -> 0.52 | N19: =IFERROR(E17/100,"") -> 0
A20: =IF(D20>0,"F","") ->  | B20: SERVIÇO EM TERRA | D20: =Orçamento!X311 -> 0 | E20: =Orçamento!AA311 -> 0 | F20: =ROUND(F22*$D$20,2) -> 0 | J20: =ROUND(J22*$D$20,2) -> 0 | N20: =SUM(F20:M20) -> 0
A21: =IF(A20="F",A20,"") -> 
A22: =IF(A21="F",A21,"") ->  | F22: 1 | J22: =1-F22 -> 0 | N22: =IFERROR(E20/100,"") -> 0
A23: =IF(D23>0,"F","") ->  | B23: FUNDAÇÕES E SONDAGENS | D23: =Orçamento!X312 -> 0 | E23: =Orçamento!AA312 -> 0 | F23: =ROUND(F25*$D$23,2) -> 0 | J23: =ROUND(J25*$D$23,2) -> 0 | N23: =SUM(F23:M23) -> 0
A24: =IF(A23="F",A23,"") -> 
A25: =IF(A24="F",A24,"") ->  | F25: 1 | J25: =1-F25 -> 0 | N25: =IFERROR(E23/100,"") -> 0
A26: =IF(D26>0,"F","") ->  | B26: ESTRUTURA | D26: =Orçamento!X313 -> 0 | E26: =Orçamento!AA313 -> 0 | F26: =ROUND(F28*$D$26,2) -> 0 | J26: =ROUND(J28*$D$26,2) -> 0 | N26: =SUM(F26:M26) -> 0
A27: =IF(A26="F",A26,"") -> 
A28: =IF(A27="F",A27,"") ->  | F28: 0.49 | J28: =1-F28 -> 0.51 | N28: =IFERROR(E26/100,"") -> 0
A29: =IF(D29>0,"F","") ->  | B29: INST.ELET/TELEFÔNICA/CABEAMENTO ESTRUTURADO | D29: =Orçamento!X314 -> 0 | E29: =Orçamento!AA314 -> 0 | F29: =ROUND(F31*$D$29,2) -> 0 | J29: =ROUND(J31*$D$29,2) -> 0 | N29: =SUM(F29:M29) -> 0
A30: =IF(A29="F",A29,"") -> 
A31: =IF(A30="F",A30,"") ->  | F31: 0.4 | J31: =1-F31 -> 0.6 | N31: =IFERROR(E29/100,"") -> 0
A32: =IF(D32>0,"F","") ->  | B32: INSTALAÇÕES HIDROSSANITÁRIAS | D32: =Orçamento!X315 -> 0 | E32: =Orçamento!AA315 -> 0 | F32: =ROUND(F34*$D$32,2) -> 0 | J32: =ROUND(J34*$D$32,2) -> 0 | N32: =SUM(F32:M32) -> 0
A33: =IF(A32="F",A32,"") -> 
A34: =IF(A33="F",A33,"") ->  | F34: 0.48 | J34: =1-F34 -> 0.52 | N34: =IFERROR(E32/100,"") -> 0
A35: =IF(D35>0,"F","") ->  | B35: INSTALAÇÕES ESPECIAIS | D35: =Orçamento!X316 -> 0 | E35: =Orçamento!AA316 -> 0 | F35: =ROUND(F37*$D$35,2) -> 0 | J35: =ROUND(J37*$D$35,2) -> 0 | N35: =SUM(F35:M35) -> 0
A36: =IF(A35="F",A35,"") -> 
A37: =IF(A36="F",A36,"") ->  | F37: 1 | J37: =1-F37 -> 0 | N37: =IFERROR(E35/100,"") -> 0
A38: =IF(D38>0,"F","") ->  | B38: ALVENARIA E DIVISÓRIAS | D38: =Orçamento!X317 -> 0 | E38: =Orçamento!AA317 -> 0 | F38: =ROUND(F40*$D$38,2) -> 0 | J38: =ROUND(J40*$D$38,2) -> 0 | N38: =SUM(F38:M38) -> 0
A39: =IF(A38="F",A38,"") -> 
A40: =IF(A39="F",A39,"") ->  | F40: 1 | J40: =1-F40 -> 0 | N40: =IFERROR(E38/100,"") -> 0
A41: =IF(D41>0,"F","") ->  | B41: ALVENARIA AUTO-PORTANTE | D41: =Orçamento!X318 -> 0 | E41: =Orçamento!AA318 -> 0 | F41: =ROUND(F43*$D$41,2) -> 0 | J41: =ROUND(J43*$D$41,2) -> 0 | N41: =SUM(F41:M41) -> 0
A42: =IF(A41="F",A41,"") -> 
A43: =IF(A42="F",A42,"") ->  | F43: 1 | J43: =1-F43 -> 0 | N43: =IFERROR(E41/100,"") -> 0
A44: =IF(D44>0,"F","") ->  | B44: IMPERMEABILIZAÇÃO | D44: =Orçamento!X319 -> 0 | E44: =Orçamento!AA319 -> 0 | F44: =ROUND(F46*$D$44,2) -> 0 | J44: =ROUND(J46*$D$44,2) -> 0 | N44: =SUM(F44:M44) -> 0
A45: =IF(A44="F",A44,"") -> 
A46: =IF(A45="F",A45,"") ->  | F46: 1 | J46: =1-F46 -> 0 | N46: =IFERROR(E44/100,"") -> 0
A47: =IF(D47>0,"F","") ->  | B47: ISOLAMENTO TÉRMICO E ACÚSTICO | D47: =Orçamento!X320 -> 0 | E47: =Orçamento!AA320 -> 0 | F47: =ROUND(F49*$D$47,2) -> 0 | J47: =ROUND(J49*$D$47,2) -> 0 | N47: =SUM(F47:M47) -> 0
A48: =IF(A47="F",A47,"") -> 
A49: =IF(A48="F",A48,"") ->  | F49: 0.5 | J49: =1-F49 -> 0.5 | N49: =IFERROR(E47/100,"") -> 0
A50: =IF(D50>0,"F","") ->  | B50: ESTRUTURA DE MADEIRA | D50: =Orçamento!X321 -> 0 | E50: =Orçamento!AA321 -> 0 | F50: =ROUND(F52*$D$50,2) -> 0 | J50: =ROUND(J52*$D$50,2) -> 0 | N50: =SUM(F50:M50) -> 0
A51: =IF(A50="F",A50,"") -> 
A52: =IF(A51="F",A51,"") ->  | F52: 0.4 | J52: =1-F52 -> 0.6 | N52: =IFERROR(E50/100,"") -> 0
A53: =IF(D53>0,"F","") ->  | B53: ESTRUTURA METÁLICA | D53: =Orçamento!X322 -> 0 | E53: =Orçamento!AA322 -> 0 | F53: =ROUND(F55*$D$53,2) -> 0 | J53: =ROUND(J55*$D$53,2) -> 0 | N53: =SUM(F53:M53) -> 0
A54: =IF(A53="F",A53,"") -> 
A55: =IF(A54="F",A54,"") ->  | F55: 0.35 | J55: =1-F55 -> 0.65 | N55: =IFERROR(E53/100,"") -> 0
A56: =IF(D56>0,"F","") ->  | B56: COBERTURAS | D56: =Orçamento!X323 -> 0 | E56: =Orçamento!AA323 -> 0 | F56: =ROUND(F58*$D$56,2) -> 0 | J56: =ROUND(J58*$D$56,2) -> 0 | N56: =SUM(F56:M56) -> 0
A57: =IF(A56="F",A56,"") -> 
A58: =IF(A57="F",A57,"") ->  | F58: 0 | J58: =1-F58 -> 1 | N58: =IFERROR(E56/100,"") -> 0
A59: =IF(D59>0,"F","") ->  | B59: ESQUADRIAS DE MADEIRA | D59: =Orçamento!X324 -> 0 | E59: =Orçamento!AA324 -> 0 | F59: =ROUND(F61*$D$59,2) -> 0 | J59: =ROUND(J61*$D$59,2) -> 0 | N59: =SUM(F59:M59) -> 0
A60: =IF(A59="F",A59,"") -> 
A61: =IF(A60="F",A60,"") ->  | F61: 0.54 | J61: =1-F61 -> 0.46 | N61: =IFERROR(E59/100,"") -> 0
A62: =IF(D62>0,"F","") ->  | B62: ESQUADRIAS METÁLICAS | D62: =Orçamento!X325 -> 0 | E62: =Orçamento!AA325 -> 0 | F62: =ROUND(F64*$D$62,2) -> 0 | J62: =ROUND(J64*$D$62,2) -> 0 | N62: =SUM(F62:M62) -> 0
A63: =IF(A62="F",A62,"") -> 
A64: =IF(A63="F",A63,"") ->  | F64: 0.49 | J64: =1-F64 -> 0.51 | N64: =IFERROR(E62/100,"") -> 0
A65: =IF(D65>0,"F","") ->  | B65: VIDROS | D65: =Orçamento!X326 -> 0 | E65: =Orçamento!AA326 -> 0 | F65: =ROUND(F67*$D$65,2) -> 0 | J65: =ROUND(J67*$D$65,2) -> 0 | N65: =SUM(F65:M65) -> 0
A66: =IF(A65="F",A65,"") -> 
A67: =IF(A66="F",A66,"") ->  | F67: 0 | J67: =1-F67 -> 1 | N67: =IFERROR(E65/100,"") -> 0
A68: =IF(D68>0,"F","") ->  | B68: REVESTIMENTO DE PAREDE | D68: =Orçamento!X327 -> 0 | E68: =Orçamento!AA327 -> 0 | F68: =ROUND(F70*$D$68,2) -> 0 | J68: =ROUND(J70*$D$68,2) -> 0 | N68: =SUM(F68:M68) -> 0
A69: =IF(A68="F",A68,"") -> 
A70: =IF(A69="F",A69,"") ->  | F70: 0.32 | J70: =1-F70 -> 0.68 | N70: =IFERROR(E68/100,"") -> 0
A71: =IF(D71>0,"F","") ->  | B71: FORROS | D71: =Orçamento!X328 -> 0 | E71: =Orçamento!AA328 -> 0 | F71: =ROUND(F73*$D$71,2) -> 0 | J71: =ROUND(J73*$D$71,2) -> 0 | N71: =SUM(F71:M71) -> 0
A72: =IF(A71="F",A71,"") -> 
A73: =IF(A72="F",A72,"") ->  | F73: 0.24 | J73: =1-F73 -> 0.76 | N73: =IFERROR(E71/100,"") -> 0
A74: =IF(D74>0,"F","") ->  | B74: REVESTIMENTO DE PISO | D74: =Orçamento!X329 -> 0 | E74: =Orçamento!AA329 -> 0 | F74: =ROUND(F76*$D$74,2) -> 0 | J74: =ROUND(J76*$D$74,2) -> 0 | N74: =SUM(F74:M74) -> 0
A75: =IF(A74="F",A74,"") -> 
A76: =IF(A75="F",A75,"") ->  | F76: 0.49 | J76: =1-F76 -> 0.51 | N76: =IFERROR(E74/100,"") -> 0
A77: =IF(D77>0,"F","") ->  | B77: FERRAGENS | D77: =Orçamento!X330 -> 0 | E77: =Orçamento!AA330 -> 0 | F77: =ROUND(F79*$D$77,2) -> 0 | J77: =ROUND(J79*$D$77,2) -> 0 | N77: =SUM(F77:M77) -> 0
A78: =IF(A77="F",A77,"") -> 
A79: =IF(A78="F",A78,"") ->  | F79: 0 | J79: =1-F79 -> 1 | N79: =IFERROR(E77/100,"") -> 0
A80: =IF(D80>0,"F","") ->  | B80: MARCENARIA | D80: =Orçamento!X331 -> 0 | E80: =Orçamento!AA331 -> 0 | F80: =ROUND(F82*$D$80,2) -> 0 | J80: =ROUND(J82*$D$80,2) -> 0 | N80: =SUM(F80:M80) -> 0
A81: =IF(A80="F",A80,"") -> 
A82: =IF(A81="F",A81,"") ->  | F82: 0.4 | J82: =1-F82 -> 0.6 | N82: =IFERROR(E80/100,"") -> 0
A83: =IF(D83>0,"F","") ->  | B83: ADMINISTRAÇÃO - MENSALISTAS | D83: =Orçamento!X332 -> 0 | E83: =Orçamento!AA332 -> 0 | F83: =ROUND(F85*$D$83,2) -> 0 | J83: =ROUND(J85*$D$83,2) -> 0 | N83: =SUM(F83:M83) -> 0
A84: =IF(A83="F",A83,"") -> 
A85: =IF(A84="F",A84,"") ->  | F85: 0.49 | J85: =1-F85 -> 0.51 | N85: =IFERROR(E83/100,"") -> 0
A86: =IF(D86>0,"F","") ->  | B86: PINTURA | D86: =Orçamento!X333 -> 0 | E86: =Orçamento!AA333 -> 0 | F86: =ROUND(F88*$D$86,2) -> 0 | J86: =ROUND(J88*$D$86,2) -> 0 | N86: =SUM(F86:M86) -> 0
A87: =IF(A86="F",A86,"") -> 
A88: =IF(A87="F",A87,"") ->  | F88: 0 | J88: =1-F88 -> 1 | N88: =IFERROR(E86/100,"") -> 0
A89: =IF(D89>0,"F","") ->  | B89: DIVERSOS | D89: =Orçamento!X334 -> 0 | E89: =Orçamento!AA334 -> 0 | F89: =ROUND(F91*$D$89,2) -> 0 | J89: =ROUND(J91*$D$89,2) -> 0 | N89: =SUM(F89:M89) -> 0
A90: =IF(A89="F",A89,"") -> 
A91: =IF(A90="F",A90,"") ->  | F91: 0.46 | J91: =1-F91 -> 0.54 | N91: =IFERROR(E89/100,"") -> 0
A92: F | B92: CUSTO DO ORÇAMENTO | D92: =SUM(D14:D91) -> 0 | E92: =SUM(E14:E91) -> 0 | F92: =F14+F17+F20+F23+F26+F29+F32+F35+F38+F41+F44+F47+F50+F53+F56+F59+F62+F65+F68+F71+F74+F77+F80+F83+F86+F89 -> 0 | J92: =J14+J17+J20+J23+J26+J29+J32+J35+J38+J41+J44+J47+J50+J53+J56+J59+J62+J65+J68+J71+J74+J77+J80+J83+J86+J89 -> 0 | N92: =N14+N17+N20+N23+N26+N29+N32+N35+N38+N41+N44+N47+N50+N53+N56+N59+N62+N65+N68+N71+N74+N77+N80+N83+N86+N89 -> 0
A93: F | B93: PERCENTUAIS: | F93: =IFERROR(F92/D92,"") ->  | J93: =IFERROR(J92/D92,"") ->  | N93: =SUM(F93:M93) -> 0
A94: F | B94: TOTAIS ACUMULADOS: | F94: =F92 -> 0 | J94: =F94+J92 -> 0
A95: F | B95: PERCENTUAIS ACUMULADOS: | F95: =F93 ->  | J95: =IFERROR(F95+J93,"") -> 
A96: F
A97: F | B97: OBSERVAÇÕES:
A98: F | B98: Os pagamentos somente poderão ser efetuados mediante medição e atesto pelos técnicos da Secretaria da Educação.

Sheet Composição BDI
A2: UNIDADE ESCOLAR
A3: =Orçamento!$O$4 -> COORDENAÇÃO REGIONAL DE EDUAÇÃO DE RIO VERDE
A5: OBRA
A6: =Orçamento!$O$7 -> IMPLANTAÇÃO
A8: ENDEREÇO
A9: =Orçamento!$R$10 -> RUA 15-A, BAIRRO POPULAR
A11: CIDADE
A12: =Orçamento!$X$7 -> RIO VERDE
A14: CRE
A15: =Orçamento!$O$10 -> RIO VERDE
A17: DETALHAMENTO DA COMPOSIÇÃO DE BDI
A18: COMPOSIÇÃO BDI PARA OBRAS CIVIS | F18: BDI CONSTRUÇÃO E REFORMA
A19: DESCRIÇÃO | B19: COEF. | C19: TAXA % (a.m) | D19: % no preço de venda | F19: Situação | G19: 1º Quartil | H19: Médio | I19: 3º Quartil
A20: 1) COFINS | B20: 1 | C20: 0.03 | D20: =C20 -> 0.03 | F20: =IF(OR(C20<G20,C20>I20),"FORA DO INTERVALO","OK") -> OK | G20: 0.03 | H20: 0.03 | I20: 0.03
A21: 2) PIS | B21: 1 | C21: 0.0065 | D21: =C21 -> 0.0065 | F21: =IF(OR(C21<G21,C21>I21),"FORA DO INTERVALO","OK") -> OK | G21: 0.0065 | H21: 0.0065 | I21: 0.0065
A22: 3) ISSQN | B22: 1 | C22: 0.025 | D22: =C22*B22 -> 0.025 | F22: OK | G22: 0.02 | H22: 0.035 | I22: 0.05
A23: 4) CPRB | B23: 1 | C23: 0.045 | D23: =C23 -> 0.045 | F23: OK | G23: 0.045 | H23: 0.045 | I23: 0.045
A24: 5) Administração Central | B24: 1 | C24: 0.04 | D24: 0.04 | F24: OK | G24: 0.03 | H24: 0.04 | I24: 0.055
A25: 6) Despesas Financeiras | B25: 1 | C25: 0.0056 | D25: 0.0056 | F25: FORA DO INTERVALO | G25: 0.0059 | H25: 0.0123 | I25: 0.0139
A26: 7) Seguros + Garantias | B26: 1 | C26: 0.0012 | D26: 0.0012 | F26: FORA DO INTERVALO | G26: 0.008 | H26: 0.008 | I26: 0.01
A27: 8) Risco | B27: 1 | C27: 0.0097 | D27: 0.0097 | F27: OK | G27: 0.0097 | H27: 0.0127 | I27: 0.0127
A28: 9) Lucro | B28: 1 | C28: 0.0687 | D28: 0.0687 | F28: OK | G28: 0.0616 | H28: 0.074 | I28: 0.0896
A29: BDI - FINAL | D29: =(((1+D24+D26+D27)*(1+D25)*(1+D28))/(1-(D20+D21+D22+D23))-1) -> 0.2640024312 | F29: =IF(OR(D29<G29,D29>I29),"FORA DO INTERVALO","OK") -> FORA DO INTERVALO | G29: 0.2034 | H29: 0.2212 | I29: 0.25
A31: Notas:
A32: (1) e (2) Alíquota definida por lei.
A33: (3) Alíquota e base de cálculo definidas pela legislação municipal.
A34: (4) Alíquota definida pelas leis 12.546/11, 12844/13 e 13.161/15 (CPRB – contribuição previdenciária sobre a receita bruta).
A35: (5) Valores definidos a partir dos limites no Acórdão nº 2.622/2013 - TCU – Plenário. Valores entre o 1º e 3º quartis.
A36: (6) Valor calculado pela expressão matemática do acórdão 2.369/2011 – TCU – Plenário e disponibilizado pela AGETOP em dezembro de 2018. (Foi utilizado para o cálculo a média da Taxa SELIC no período de 11/2017 a 10/2018)
A38: (7) Valores definidos pela AGETOP a partir dos limites no Acórdão nº 2.622/2013 - TCU – Plenário. Valores médios. Observação da AGETOP: (Seguros contra erros de execução, incêndio e explosão, danos da natureza (vendaval, destelhamento, alagamento, inundação, desmoronamento, geadas etc.), emprego de material defeituoso ou inadequado, roubo e/ou furto qualificado, quebra de equipamentos, desmoronamento de estrutura, nas modalidades de Obras Civis em Construção (OCC); Instalação e Montagem (IM); e Obras Civis em Construção e Instalação e Montagem (OCC/IM). Bem como coberturas adicionais para ampliação dessas coberturas básicas, como: cobertura de responsabilidade civil geral, cobertura de responsabilidade civil cruzada, cobertura de despesas extraordinárias, cobertura de tumultos, cobertura de desentulho do local, cobertura de riscos do fabricante, dentre outras, incluindo o seguro de vida em grupo regido pela convenção coletiva dos trabalhadores na indústria da construção civil). A partir de 24/02/2015 por intermédio da Portaria 449/2015 a Presidência da AGETOP, na pessoa do Senhor Jayme Eduardo Rincon, determinou a exclusão dos valores referentes aos Seguros de Risco de Engenharia e Responsabilidade Civil do Profissional na composição do cálculo do B.D.I..
A39: (8) Valores definidos a partir dos limites no Acórdão nº 2.622/2013 - TCU – Plenário. Valores entre 1º e 3° quartis.
A40: (9) Valores definidos a partir dos limites definidos no Acórdão nº 2.622/2013 - TCU – Plenário. Valores adotados e praticados no mercado ( “ ex ante ” ) ou aqueles entre os 1º e 3º quartis.
A42: (*) A fórmula para estipulação da taxa de BDI estimado adotado é a mesma que foi aplicada para a obtenção das tabelas contidas no Acórdão n. 2.622/2013 – TCUPlenário
A44: Obs.: Para obras com valores superiores a R$ 20.000.000,00 sugere-se recalcular o BDI, dimensionando as taxas de administração central e lucro para patamares inferiores ao estipulado acima.

Sheet Relatório CENTRAL
B2: UNIDADE ESCOLAR | D2: CIDADE
B3: =Orçamento!$O$4 -> COORDENAÇÃO REGIONAL DE EDUAÇÃO DE RIO VERDE | D3: =Orçamento!$X$7 -> RIO VERDE
B5: OBRA | D5: CRE
B6: =Orçamento!$O$7 -> IMPLANTAÇÃO | D6: =Orçamento!$O$10 -> RIO VERDE
B8: ENDEREÇO | D8: DATA
A9: FILTRO | B9: =Orçamento!$R$10 -> RUA 15-A, BAIRRO POPULAR | D9: =Orçamento!$S$7 -> 2020-07-23
B11: RELATÓRIO CENTRAL
A12: ↓ | B12: CÓDIGO | C12: ETAPA | D12: PREÇO (R$) C/ BDI | E12: PARTIC ( % )
A13: =IF(D13>0,"F","") ->  | B13: =Orçamento!O309 -> a. | C13: =Orçamento!P309 -> SERVIÇOS PRELIMINARES | D13: =Orçamento!X309 -> 0 | E13: =Orçamento!AA309 -> 0
A14: =IF(D14>0,"F","") ->  | B14: =Orçamento!O310 -> b. | C14: =Orçamento!P310 -> TRANSPORTES | D14: =Orçamento!X310 -> 0 | E14: =Orçamento!AA310 -> 0
B15: =Orçamento!O311 -> c. | C15: =Orçamento!P311 -> SERVIÇO EM TERRA | D15: =Orçamento!X311 -> 0 | E15: =Orçamento!AA311 -> 0
B16: =Orçamento!O312 -> d. | C16: =Orçamento!P312 -> FUNDAÇÕES E SONDAGENS | D16: =Orçamento!X312 -> 0 | E16: =Orçamento!AA312 -> 0
B17: =Orçamento!O313 -> e. | C17: =Orçamento!P313 -> ESTRUTURA | D17: =Orçamento!X313 -> 0 | E17: =Orçamento!AA313 -> 0
B18: =Orçamento!O314 -> f. | C18: =Orçamento!P314 -> INSTALAÇÕES ELÉTRICAS | D18: =Orçamento!X314 -> 0 | E18: =Orçamento!AA314 -> 0
B19: =Orçamento!O315 -> g. | C19: =Orçamento!P315 -> INSTALAÇÕES HIDROSSANITÁRIAS | D19: =Orçamento!X315 -> 0 | E19: =Orçamento!AA315 -> 0
B20: =Orçamento!O316 -> h | C20: =Orçamento!P316 -> INSTALAÇÕES ESPECIAIS | D20: =Orçamento!X316 -> 0 | E20: =Orçamento!AA316 -> 0
B21: =Orçamento!O317 -> i. | C21: =Orçamento!P317 -> ALVENARIAS E DIVISÓRIAS | D21: =Orçamento!X317 -> 0 | E21: =Orçamento!AA317 -> 0
B22: =Orçamento!O318 -> j. | C22: =Orçamento!P318 -> ALVENARIA AUTO-PORTANTE | D22: =Orçamento!X318 -> 0 | E22: =Orçamento!AA318 -> 0
B23: =Orçamento!O319 -> k. | C23: =Orçamento!P319 -> IMPERMEABILIZAÇÃO | D23: =Orçamento!X319 -> 0 | E23: =Orçamento!AA319 -> 0
B24: =Orçamento!O320 -> l. | C24: =Orçamento!P320 -> ISOLAMENTO TÉRMICO E ACÚSTICO | D24: =Orçamento!X320 -> 0 | E24: =Orçamento!AA320 -> 0
B25: =Orçamento!O321 -> m. | C25: =Orçamento!P321 -> ESTRUTURA DE MADEIRA | D25: =Orçamento!X321 -> 0 | E25: =Orçamento!AA321 -> 0
B26: =Orçamento!O322 -> n. | C26: =Orçamento!P322 -> ESTRUTURAS METÁLICAS | D26: =Orçamento!X322 -> 0 | E26: =Orçamento!AA322 -> 0
B27: =Orçamento!O323 -> o. | C27: =Orçamento!P323 -> COBERTURAS | D27: =Orçamento!X323 -> 0 | E27: =Orçamento!AA323 -> 0
B28: =Orçamento!O324 -> p. | C28: =Orçamento!P324 -> ESQUADRIAS DE MADEIRA | D28: =Orçamento!X324 -> 0 | E28: =Orçamento!AA324 -> 0
B29: =Orçamento!O325 -> q. | C29: =Orçamento!P325 -> ESQUADRIAS METÁLICAS | D29: =Orçamento!X325 -> 0 | E29: =Orçamento!AA325 -> 0
B30: =Orçamento!O326 -> r. | C30: =Orçamento!P326 -> VIDROS | D30: =Orçamento!X326 -> 0 | E30: =Orçamento!AA326 -> 0
B31: =Orçamento!O327 -> s. | C31: =Orçamento!P327 -> REVESTIMENTO DE PAREDE | D31: =Orçamento!X327 -> 0 | E31: =Orçamento!AA327 -> 0
B32: =Orçamento!O328 -> t. | C32: =Orçamento!P328 -> FORROS | D32: =Orçamento!X328 -> 0 | E32: =Orçamento!AA328 -> 0
B33: =Orçamento!O329 -> u. | C33: =Orçamento!P329 -> REVESTIMENTO DE PISO | D33: =Orçamento!X329 -> 0 | E33: =Orçamento!AA329 -> 0
B34: =Orçamento!O330 -> v. | C34: =Orçamento!P330 -> FERRAGENS | D34: =Orçamento!X330 -> 0 | E34: =Orçamento!AA330 -> 0
B35: =Orçamento!O331 -> w. | C35: =Orçamento!P331 -> MARCENARIA | D35: =Orçamento!X331 -> 0 | E35: =Orçamento!AA331 -> 0
B36: =Orçamento!O332 -> x. | C36: =Orçamento!P332 -> ADMINISTRAÇÃO | D36: =Orçamento!X332 -> 0 | E36: =Orçamento!AA332 -> 0
B37: =Orçamento!O333 -> y. | C37: =Orçamento!P333 -> PINTURA | D37: =Orçamento!X333 -> 0 | E37: =Orçamento!AA333 -> 0
B38: =Orçamento!O334 -> z. | C38: =Orçamento!P334 -> DIVERSOS | D38: =Orçamento!X334 -> 0 | E38: =Orçamento!AA334 -> 0
A39: F | B39: TOTAL GERAL DO ORÇAMENTO (R$) C/BDI | D39: =SUM(D13:D38) -> 0 | E39: =SUM(E13:E38) -> 0

Sheet Parc Maior Relev
B2: UNIDADE ESCOLAR | E2: CÓDIGO INEP
B3: =Orçamento!$O$4 -> COORDENAÇÃO REGIONAL DE EDUAÇÃO DE RIO VERDE | E3: =Orçamento!$X$4 -> 0
B5: OBRA | E5: CIDADE
B6: =Orçamento!$O$7 -> IMPLANTAÇÃO | E6: =Orçamento!$X$7 -> RIO VERDE
B8: CRE | E8: ÁREA TOTAL CONSTRUÍDA (M²)
B9: =Orçamento!$O$10 -> RIO VERDE | E9: =Orçamento!$X$13 -> 100.68
A11: FILTRO | B11: PARCELA DE MAIOR RELEVÂNCIA
A12: =IF(G13>0,"F","") ->  | B12: CÓDIGO | C12: SERVIÇO | D12: DESCRIÇÃO | E12: UNID | F12: QUANT | G12: PARC. MAIOR RELEV (100%)
A13: =IF(G13>0,"F","") ->  | B13: f. | C13: INSTALAÇÕES ELÉTRICAS | D13: SUBESTAÇÃO | E13: KVA | F13: =SUMIF(Orçamento!$R$20:$R$290,'Parc Maior Relev'!D13,Orçamento!$T$20:$T$290) -> 0 | G13: =F13 -> 0
A14: =IF(SUM(G15:G29)>0,"F","") -> F | B14: CÓDIGO | C14: SERVIÇO | D14: DESCRIÇÃO | E14: UNID | F14: QUANT | G14: PARC. MAIOR RELEV (50%)
A15: =IF(G15>0,"F","") ->  | B15: e. | C15: ESTRUTURA | D15: CONCRETO | E15: M3 | F15: =SUMIF(Orçamento!$R$20:$R$290,'Parc Maior Relev'!D15,Orçamento!$T$20:$T$290) -> 0 | G15: =F15*0.5 -> 0
A16: =IF(G16>0,"F","") ->  | B16: f. | C16: INSTALAÇÕES ELÉTRICAS | D16: INSTALAÇÕES ELÉTRICAS | E16: KVA | F16: =SUMIF(Orçamento!$R$20:$R$290,'Parc Maior Relev'!D16,Orçamento!$T$20:$T$290) -> 0 | G16: =F16*0.5 -> 0
A17: =IF(G17>0,"F","") ->  | B17: o. | C17: COBERTURAS | D17: COBERTURA CERÂMICA | E17: M2 | F17: =SUMIF(Orçamento!$R$20:$R$290,'Parc Maior Relev'!D17,Orçamento!$T$20:$T$290) -> 0 | G17: 0
B18: o. | C18: COBERTURAS | D18: COBERTURA COM TELHA METÁLICA | E18: M2 | F18: =SUMIF(Orçamento!$R$20:$R$290,'Parc Maior Relev'!D18,Orçamento!$T$20:$T$290) -> 0 | G18: 0
B19: s. | C19: REVESTIMENTO DE PAREDE | D19: CHAPISCO | E19: M2 | F19: =SUMIF(Orçamento!$R$20:$R$290,'Parc Maior Relev'!D19,Orçamento!$T$20:$T$290) -> 0 | G19: 0
A20: F | B20: s. | C20: REVESTIMENTO DE PAREDE | D20: REBOCO | E20: M2 | F20: 268.1 | G20: 134.05
B21: s. | C21: REVESTIMENTO DE PAREDE | D21: REVESTIMENTO CERÂMICO | E21: M2 | F21: =SUMIF(Orçamento!$R$20:$R$290,'Parc Maior Relev'!D21,Orçamento!$T$20:$T$290) -> 0 | G21: 0
B22: t. | C22: FORROS | D22: FORRO DE GESSO | E22: M2 | F22: =SUMIF(Orçamento!$R$20:$R$290,'Parc Maior Relev'!D22,Orçamento!$T$20:$T$290) -> 0 | G22: 0
B23: t. | C23: FORROS | D23: FORRO DE PVC | E23: M2 | F23: =SUMIF(Orçamento!$R$20:$R$290,'Parc Maior Relev'!D23,Orçamento!$T$20:$T$290) -> 0 | G23: 0
B24: t. | C24: FORROS | D24: FORRO DE GESSO ACARTONADO | E24: M2 | F24: =SUMIF(Orçamento!$R$20:$R$290,'Parc Maior Relev'!D24,Orçamento!$T$20:$T$290) -> 0 | G24: 0
A25: F | B25: u. | C25: REVESTIMENTO DE PISO | D25: PISO DE GRANITINA | E25: M2 | F25: 90.8 | G25: 45.4
B26: u. | C26: REVESTIMENTO DE PISO | D26: PISO LAMINADO | E26: M2 | F26: =SUMIF(Orçamento!$R$20:$R$290,'Parc Maior Relev'!D26,Orçamento!$T$20:$T$290) -> 0 | G26: 0
B27: u. | C27: REVESTIMENTO DE PISO | D27: PISO DE CONCRETO DESEMPENADO | E27: M2 | F27: =SUMIF(Orçamento!$R$20:$R$290,'Parc Maior Relev'!D27,Orçamento!$T$20:$T$290) -> 0 | G27: 0
B28: u. | C28: REVESTIMENTO DE PISO | D28: PISO CERÂMICO | E28: M2 | F28: =SUMIF(Orçamento!$R$20:$R$290,'Parc Maior Relev'!D28,Orçamento!$T$20:$T$290) -> 0 | G28: 0
B29: y. | C29: PINTURA | D29: PINTURA | E29: M2 | F29: =SUMIF(Orçamento!$R$20:$R$290,'Parc Maior Relev'!D29,Orçamento!$T$20:$T$290) -> 0 | G29: 0
A30: F
A31: F | B31: (*) Para os fins do inciso I dp § 1º do Art. 30 da Lei Federal 8.666/93, são consideradas parcelas de maior relevância técnica as execuções apresentadas
A32: F

Sheet Composições
A3: UNIDADE ESCOLAR | H3: CÓDIGO INEP
A4: =Orçamento!$O$4 -> COORDENAÇÃO REGIONAL DE EDUAÇÃO DE RIO VERDE | H4: =Orçamento!$X$4 -> 0
A6: OBRA | H6: CIDADE
A7: =Orçamento!$O$7 -> IMPLANTAÇÃO | H7: =Orçamento!$X$7 -> RIO VERDE
A9: CRE | D9: ENDEREÇO | H9: REFERÊNCIA AGETOP
A10: =Orçamento!$O$10 -> RIO VERDE | D10: =Orçamento!$R$10 -> RUA 15-A, BAIRRO POPULAR | H10: =Orçamento!$S$10 -> ABR/19 | I10: =Orçamento!$T$10 -> DESONERADA
A12: DATA | D12: ÁREA TOTAL CONSTRUÍDA (M²) | H12: REFERÊNCIA SINAPI
A13: =Orçamento!$S$7 -> 2020-07-23 | D13: =Orçamento!$X$13 -> 100.68 | H13: =Orçamento!$X$10 -> ABR/20 | I13: =Orçamento!$Y$10 -> DESONERADA
A15: COMPOSIÇÕES DE CUSTOS UNITÁRIOS - SEE-GO
A16: 415 | B16: FONTE | C16: CÓDIGO | D16: DESCRIÇÃO | E16: UNIDADE | F16: COEFIC. | G16: CUSTO UNITÁRIO | I16: CUSTO TOTAL (A) + (B) + (C) + (D) + (E)
G17: DESONERADO | H17: NÃO DESONER. | I17: DESONERADO | J17: NÃO DESONER.
B18: COMPOSIÇÃO | C18: COMP 415_SEE | D18: PEITORIL EM GRANITO CINZA, LARGURA VARIÁVEL E PINGADEIRA | E18: M2 | I18: 204.79 | J18: 207.58
B19: AGETOP_I | C19: 28 | D19: AZULEJISTA | E19: h | F19: 0.6691 | G19: 13.95 | H19: 16.16 | I19: 9.33 | J19: 10.81
B20: AGETOP_I | C20: 5 | D20: SERVENTE | E20: h | F20: 0.9388 | G20: 8.75 | H20: 10.14 | I20: 8.21 | J20: 9.52
B21: MÃO DE OBRA (B) - TOTAL | I21: 17.54 | J21: 20.33
B22: AGETOP_I | C22: 1421 | D22: GRANITO POLIDO P/BANCADA 2 CM | E22: m2 | F22: 1 | G22: 180 | H22: 180 | I22: 180 | J22: 180
B23: AGETOP_I | C23: 1215 | D23: CIMENTO PORTLAND C.P. 32 | E23: Kg | F23: 10.34 | G23: 0.39 | H23: 0.39 | I23: 4.03 | J23: 4.03
B24: AGETOP_I | C24: 2690 | D24: ARGAMASSA DE REJUNTAMENTO | E24: Kg | F24: 0.32 | G24: 3.54 | H24: 3.54 | I24: 1.13 | J24: 1.13
B25: AGETOP_I | C25: 104 | D25: AREIA MEDIA | E25: m3 | F25: 0.0252 | G25: 82.85 | H25: 82.85 | I25: 2.09 | J25: 2.09
B26: MATERIAL (C) - TOTAL | I26: 187.25 | J26: 187.25
A28: 84 | B28: FONTE | C28: CÓDIGO | D28: DESCRIÇÃO | E28: UNIDADE | F28: COEFIC. | G28: CUSTO UNITÁRIO | I28: CUSTO TOTAL (A) + (B) + (C) + (D) + (E)
G29: DESONERADO | H29: NÃO DESONER. | I29: DESONERADO | J29: NÃO DESONER.
B30: COMPOSIÇÃO | C30: COMP 084_SEE | D30: GUARDA-CORPO COM CORRIMÃO - SEDUC | E30: M | I30: 206.14 | J30: 211.22
B31: AGETOP_I | C31: 25 | D31: OFICIAL "B" | E31: h | F31: 1.1 | G31: 13.95 | H31: 16.16 | I31: 15.35 | J31: 17.78
B32: AGETOP_I | C32: 8 | D32: AJUDANTE | E32: h | F32: 1.1 | G32: 8.75 | H32: 10.14 | I32: 9.63 | J32: 11.15
B33: MÃO DE OBRA (B) - TOTAL | I33: 24.98 | J33: 28.93
B34: AGETOP_I | C34: 2376 | D34: TUBO INDUSTRIAL 2" CHAPA 13 | E34: Kg | F34: 7.7778 | G34: 5.23 | H34: 5.23 | I34: 40.68 | J34: 40.68
B35: AGETOP_I | C35: 2504 | D35: TUBO INDUSTRIAL D=25 MM CHAPA 13 | E35: Kg | F35: 4.632 | G35: 5.07 | H35: 5.07 | I35: 23.48 | J35: 23.48
B36: AGETOP_I | C36: 2377 | D36: TUBO INDUSTRIAL 40X40 CH.13 | E36: Kg | F36: 6.342 | G36: 5.07 | H36: 5.07 | I36: 32.15 | J36: 32.15
B37: AGETOP_I | C37: 2421 | D37: TUBO INDUSTRIAL 1.1/2" CHAPA 13 | E37: Kg | F37: 1.4862 | G37: 5.07 | H37: 5.07 | I37: 7.54 | J37: 7.54
B38: AGETOP_I | C38: 2417 | D38: MASSA PLASTICA | E38: Kg | F38: 0.2041 | G38: 10.58 | H38: 10.58 | I38: 2.16 | J38: 2.16
B39: AGETOP_I | C39: 2246 | D39: ELETRODO 2.5 OK | E39: Kg | F39: 0.1146 | G39: 8.7 | H39: 8.7 | I39: 1 | J39: 1
B40: AGETOP_I | C40: 1672 | D40: LIXA PARA FERRO ( NÚMERO 100 ) | E40: un | F40: 0.2551 | G40: 2.12 | H40: 2.12 | I40: 0.54 | J40: 0.54
B41: AGETOP_I | C41: 1264 | D41: DISCO DE DESBASTE 7/8" P/ CONC./FERRO (1/4" X 7") | E41: un | F41: 0.051 | G41: 7 | H41: 7 | I41: 0.36 | J41: 0.36
B42: AGETOP_I | C42: 1334 | D42: DISCO DE CORTE DIAM. 5/8"- 10" | E42: un | F42: 0.373 | G42: 5.5 | H42: 5.5 | I42: 2.05 | J42: 2.05
B43: AGETOP_I | C43: 2902 | D43: FABRICAÇÃO / MONTAGEM | E43: un | F43: 1 | G43: 50.44 | H43: 50.44 | I43: 50.44 | J43: 50.44
B44: AGETOP_I | C44: 2150 | D44: CHAPA DE FERRO DOBRADA No.13 | E44: Kg | F44: 0.4352 | G44: 5.28 | H44: 5.28 | I44: 2.3 | J44: 2.3
B45: AGETOP_I | C45: 2719 | D45: CHAPA PERFILADA 3/16" | E45: Kg | F45: 1.098 | G45: 5.04 | H45: 5.04 | I45: 5.53 | J45: 5.53
B46: AGETOP_I | C46: 2436 | D46: ACO CA-25 - 6,3 MM (1/4") - BARRA LISA A-36 | E46: Kg | F46: 0.38125 | G46: 5.13 | H46: 5.13 | I46: 1.96 | J46: 1.96
B47: AGETOP | C47: 261602 | D47: PINT.ESMALTE/ESQUAD.FERRO C/FUNDO ANTICOR. | E47: m2 | F47: 0.78 | G47: 14.07 | H47: 15.51 | I47: 10.97 | J47: 12.1
B48: MATERIAL (C) - TOTAL | I48: 181.16 | J48: 182.29
A50: 24 | B50: FONTE | C50: CÓDIGO | D50: DESCRIÇÃO | E50: UNIDADE | F50: COEFIC. | G50: CUSTO UNITÁRIO | I50: CUSTO TOTAL (A) + (B) + (C) + (D) + (E)
G51: DESONERADO | H51: NÃO DESONER. | I51: DESONERADO | J51: NÃO DESONER.
B52: COMPOSIÇÃO | C52: COMP 024_SEE | D52: SINALIZADOR FOTOLUMINESCENTE PARA EXTINTOR | E52: UN | G52: - | H52: - | I52: 25.32 | J52: 25.44
B53: AGETOP_I | C53: 5 | D53: SERVENTE | E53: h | F53: 0.09 | G53: 8.75 | H53: 10.14 | I53: 0.79 | J53: 0.91
B54: MÃO DE OBRA (B) - TOTAL | I54: 0.79 | J54: 0.91
B55: AGETOP_I | C55: 3070 | D55: BUCHA DE NYLON S-6 | E55: un | F55: 2 | G55: 0.04 | H55: 0.04 | I55: 0.08 | J55: 0.08
B56: AGETOP_I | C56: 3393 | D56: PARAFUSO P/BUCHA S-6 | E56: un | F56: 2 | G56: 0.08 | H56: 0.08 | I56: 0.16 | J56: 0.16
B57: SINAPI_I | C57: 37556 | D57: PLACA DE SINALIZACAO DE SEGURANCA CONTRA INCENDIO, FOTOLUMINESCENTE, QUADRADA, *20 X 20* CM, EM PVC *2* MM ANTI-CHAMAS (SIMBOLOS, CORES E PICTOGRAMAS CONFORME NBR 13434) | E57: UN | F57: 1 | G57: 24.29 | H57: 24.29 | I57: 24.29 | J57: 24.29
B58: MATERIAL (C) - TOTAL | I58: 24.53 | J58: 24.53
A60: 25 | B60: FONTE | C60: CÓDIGO | D60: DESCRIÇÃO | E60: UNIDADE | F60: COEFIC. | G60: CUSTO UNITÁRIO | I60: CUSTO TOTAL (A) + (B) + (C) + (D) + (E)
G61: DESONERADO | H61: NÃO DESONER. | I61: DESONERADO | J61: NÃO DESONER.
B62: COMPOSIÇÃO | C62: COMP 025_SEE | D62: SINALIZADOR FOTOLUMINESCENTE DE EMERGÊNCIA | E62: UN | G62: - | H62: - | I62: 25.32 | J62: 25.44
B63: AGETOP_I | C63: 5 | D63: SERVENTE | E63: h | F63: 0.09 | G63: 8.75 | H63: 10.14 | I63: 0.79 | J63: 0.91
B64: MÃO DE OBRA (B) - TOTAL | I64: 0.79 | J64: 0.91
B65: AGETOP_I | C65: 3070 | D65: BUCHA DE NYLON S-6 | E65: un | F65: 2 | G65: 0.04 | H65: 0.04 | I65: 0.08 | J65: 0.08
B66: AGETOP_I | C66: 3393 | D66: PARAFUSO P/BUCHA S-6 | E66: un | F66: 2 | G66: 0.08 | H66: 0.08 | I66: 0.16 | J66: 0.16
B67: SINAPI_I | C67: 37556 | D67: PLACA DE SINALIZACAO DE SEGURANCA CONTRA INCENDIO, FOTOLUMINESCENTE, QUADRADA, *20 X 20* CM, EM PVC *2* MM ANTI-CHAMAS (SIMBOLOS, CORES E PICTOGRAMAS CONFORME NBR 13434) | E67: UN | F67: 1 | G67: 24.29 | H67: 24.29 | I67: 24.29 | J67: 24.29
B68: MATERIAL (C) - TOTAL | I68: 24.53 | J68: 24.53
A70: 277 | B70: FONTE | C70: CÓDIGO | D70: DESCRIÇÃO | E70: UNIDADE | F70: COEFIC. | G70: CUSTO UNITÁRIO | I70: CUSTO TOTAL (A) + (B) + (C) + (D) + (E)
G71: DESONERADO | H71: NÃO DESONER. | I71: DESONERADO | J71: NÃO DESONER.
B72: COMPOSIÇÃO | C72: COMP 277_SEE | D72: MARCAÇÃO NO PISO - 1X1 M PARA EXTINTOR | E72: M2 | I72: 29.69 | J72: 29.76
B73: AGETOP_I | C73: 5 | D73: SERVENTE | E73: h | F73: 0.0333 | G73: 8.75 | H73: 10.14 | I73: 0.29 | J73: 0.34
B74: MÃO DE OBRA (B) - TOTAL | I74: 0.29 | J74: 0.34
B75: SINAPI_I | C75: 5318 | D75: SOLVENTE DILUENTE A BASE DE AGUARRAS | E75: L | F75: 0.13 | G75: 11.98 | H75: 11.98 | I75: 1.56 | J75: 1.56
B76: SINAPI | C76: 5824 | D76: CAMINHÃO TOCO, PBT 16.000 KG, CARGA ÚTIL MÁX. 10.685 KG, DIST. ENTRE EIXOS 4,8 M, POTÊNCIA 189 CV, INCLUSIVE CARROCERIA FIXA ABERTA DE MADEIRA P/ TRANSPORTE GERAL DE CARGA SECA, DIMEN. APROX. 2,5 X 7,00 X 0,50 M - CHP DIURNO. AF_06/2014 | E76: CHP | F76: 0.0033 | G76: 115.5 | H76: 118.69 | I76: 0.38 | J76: 0.39
B77: SINAPI_I | C77: 7343 | D77: TINTA A BASE DE RESINA ACRILICA, PARA SINALIZACAO HORIZONTAL VIARIA (NBR 11862) | E77: L | F77: 0.6 | G77: 12.82 | H77: 12.82 | I77: 7.69 | J77: 7.69
B78: SINAPI_I | C78: 7348 | D78: TINTA ACRILICA PREMIUM PARA PISO | E78: L | F78: 0.03 | G78: 13.96 | H78: 13.96 | I78: 0.42 | J78: 0.42
B79: SINAPI_I | C79: 25972 | D79: MICROESFERAS DE VIDRO PARA SINALIZACAO HORIZONTAL VIARIA, TIPO I-B (PREMIX) - NBR 16184 | E79: KG | F79: 2.14 | G79: 8.88 | H79: 8.88 | I79: 19 | J79: 19
B80: SINAPI | C80: 95133 | D80: MÁQUINA DEMARCADORA DE FAIXA DE TRÁFEGO À FRIO, AUTOPROPELIDA, POTÊNCIA 38 HP - CHP DIURNO. AF_07/2016 | E80: CHP | F80: 0.0033 | G80: 105.93 | H80: 109.48 | I80: 0.35 | J80: 0.36
B81: MATERIAL (C) - TOTAL | I81: 29.4 | J81: 29.42
